Workbook

Sheet 定率法
A2: 【残存簿価相当額・補助金相当額計算書】
B3: 決 算 月： | E3: 償却額の端数処理：
A4: １．残存簿価相当額計算
A5: 財産名①：
B6: 登録日： | E6: 償却方法： | F6: =IF(C6<=DATE(2007,3,31),"旧定率法","定率法") -> 旧定率法
B7: 処分時期： | E7: 耐用年数：
B8: 財産取得価格(税抜)： | E8: 償却率： | F8: =IF(F7="","",IF(C6<=DATE(2007,3,31),VLOOKUP(F7,'（削除禁止）償却率'!A:J,4,FALSE),IF(C6>=DATE(2012,4,1),VLOOKUP(F7,'（削除禁止）償却率'!A:J,8,FALSE),VLOOKUP(F7,'（削除禁止）償却率'!A:J,5,FALSE)))) -> 
B9: 保証率： | C9: =IF(C6<=DATE(2007,3,31),"",IF(C6>=DATE(2012,4,1),VLOOKUP(F7,'（削除禁止）償却率'!A:J,10,FALSE),VLOOKUP(F7,'（削除禁止）償却率'!A:J,7,FALSE))) ->  | E9: 償却保証額： | F9: =IF(C9="","",C8*C9) -> 
E10: 改定償却率： | F10: =IF(C6<=DATE(2007,3,31),"",IF(C6>=DATE(2012,4,1),VLOOKUP(F7,'（削除禁止）償却率'!A:J,9,FALSE),VLOOKUP(F7,'（削除禁止）償却率'!A:J,6,FALSE))) -> 
A11: 西暦 | C11: か月 | E11: 償却額 （端数処理後） | F11: 期末帳簿価格
A12: =IF(C3=12,YEAR(C6),IF(C3<MONTH(C6),YEAR(C6),YEAR(C6)-1)) -> 1900 | B12: 1 | C12: =IF(OR($C$3="",$C$6=""),0,IF($C$3=12,12-MONTH(C6)+1,IF($C$3<MONTH(C6),12+$C$3-MONTH(C6)+1,$C$3-MONTH(C6)+1))) -> 0 | D12: =IF(F8="","",IF(F6="旧定率法",C8*F8*C12/12,IF(C8*F8>F9,C8*F8*C12/12,C8*F10*C12/12))) ->  | F12: =C8-E12 -> 0 | H12: =IF(F9="",IF(SUM(E12:E12)+(C8*F8)<=C8*0.95,1,0),1) ->  | I12: =IF(C8*F8>F9,1,0) -> 
A13: =A12+1 -> 1901 | B13: 2 | C13: =IF(OR($C$3="",$C$6=""),0,IF(DATEDIF(DATE(YEAR(C6),MONTH(C6),1),DATE(YEAR(C7),MONTH(C7)+1,1),"m")-SUM(C12:C12)>=12,12,DATEDIF(DATE(YEAR(C6),MONTH(C6),1),DATE(YEAR(C7),MONTH(C7)+1,1),"m")-SUM(C12:C12))) -> 0 | D13: =IF(F8="","",IF(F6="旧定率法",IF(F12*F8<=F12-C8*0.05,F12*F8*C13/12,IF(OFFSET(H13,-1,0)=1,(F12-C8*0.05)*C13/12,IF(F12-OFFSET(F12,MATCH(0,H12:H26,0)-1,0)/5<=0,F12-1,OFFSET(F12,MATCH(0,H12:H26,0)-1,0)/5*C13/12))),IF(F12*F8>F9,F12*F8*C13/12,IF(OFFSET(F12,MATCH(0,I12:I26,0)-2,0)-OFFSET(F12,MATCH(0,I12:I26,0)-2,0)*F10>0,OFFSET(F12,MATCH(0,I12:I26,0)-2,0)*F10*C13/12,IF(OFFSET(I13,-1,0)=1,OFFSET(F12,MATCH(0,I12:I26,0)-2,0)-1,0))))) ->  | F13: =F12-E13 -> 0 | H13: =IF(F9="",IF(SUM(E12:E12)+(F12*F8)<=C8*0.95,1,0),1) ->  | I13: =IF(F12*F8>F9,1,0) -> 
A14: 1902 | B14: 3 | C14: =IF(OR($C$3="",$C$6=""),0,IF(DATEDIF(DATE(YEAR(C6),MONTH(C6),1),DATE(YEAR(C7),MONTH(C7)+1,1),"m")-SUM(C12:C13)>=12,12,DATEDIF(DATE(YEAR(C6),MONTH(C6),1),DATE(YEAR(C7),MONTH(C7)+1,1),"m")-SUM(C12:C13))) -> 0 | D14: =IF(F8="","",IF(F6="旧定率法",IF(F13*F8<=F13-C8*0.05,F13*F8*C14/12,IF(OFFSET(H14,-1,0)=1,(F13-C8*0.05)*C14/12,IF(F13-OFFSET(F12,MATCH(0,H12:H26,0)-1,0)/5<=0,F13-1,OFFSET(F12,MATCH(0,H12:H26,0)-1,0)/5*C14/12))),IF(F13*F8>F9,F13*F8*C14/12,IF(OFFSET(F12,MATCH(0,I12:I26,0)-2,0)-OFFSET(F12,MATCH(0,I12:I26,0)-2,0)*F10>0,OFFSET(F12,MATCH(0,I12:I26,0)-2,0)*F10*C14/12,IF(OFFSET(I14,-1,0)=1,OFFSET(F12,MATCH(0,I12:I26,0)-2,0)-1,0))))) ->  | F14: =F13-E14 -> 0 | H14: =IF(F9="",IF(SUM(E12:E13)+(F13*F8)<=C8*0.95,1,0),1) ->  | I14: =IF(F13*F8>F9,1,0) -> 
A15: 1903 | B15: 4 | C15: =IF(OR($C$3="",$C$6=""),0,IF(DATEDIF(DATE(YEAR(C6),MONTH(C6),1),DATE(YEAR(C7),MONTH(C7)+1,1),"m")-SUM(C12:C14)>=12,12,DATEDIF(DATE(YEAR(C6),MONTH(C6),1),DATE(YEAR(C7),MONTH(C7)+1,1),"m")-SUM(C12:C14))) -> 0 | D15: =IF(F8="","",IF(F6="旧定率法",IF(F14*F8<=F14-C8*0.05,F14*F8*C15/12,IF(OFFSET(H15,-1,0)=1,(F14-C8*0.05)*C15/12,IF(F14-OFFSET(F12,MATCH(0,H12:H26,0)-1,0)/5<=0,F14-1,OFFSET(F12,MATCH(0,H12:H26,0)-1,0)/5*C15/12))),IF(F14*F8>F9,F14*F8*C15/12,IF(OFFSET(F12,MATCH(0,I12:I26,0)-2,0)-OFFSET(F12,MATCH(0,I12:I26,0)-2,0)*F10>0,OFFSET(F12,MATCH(0,I12:I26,0)-2,0)*F10*C15/12,IF(OFFSET(I15,-1,0)=1,OFFSET(F12,MATCH(0,I12:I26,0)-2,0)-1,0))))) ->  | F15: =F14-E15 -> 0 | H15: =IF(F9="",IF(SUM(E12:E14)+(F14*F8)<=C8*0.95,1,0),1) ->  | I15: =IF(F14*F8>F9,1,0) -> 
A16: 1904 | B16: 5 | C16: =IF(OR($C$3="",$C$6=""),0,IF(DATEDIF(DATE(YEAR(C6),MONTH(C6),1),DATE(YEAR(C7),MONTH(C7)+1,1),"m")-SUM(C12:C15)>=12,12,DATEDIF(DATE(YEAR(C6),MONTH(C6),1),DATE(YEAR(C7),MONTH(C7)+1,1),"m")-SUM(C12:C15))) -> 0 | D16: =IF(F8="","",IF(F6="旧定率法",IF(F15*F8<=F15-C8*0.05,F15*F8*C16/12,IF(OFFSET(H16,-1,0)=1,(F15-C8*0.05)*C16/12,IF(F15-OFFSET(F12,MATCH(0,H12:H26,0)-1,0)/5<=0,F15-1,OFFSET(F12,MATCH(0,H12:H26,0)-1,0)/5*C16/12))),IF(F15*F8>F9,F15*F8*C16/12,IF(OFFSET(F12,MATCH(0,I12:I26,0)-2,0)-OFFSET(F12,MATCH(0,I12:I26,0)-2,0)*F10>0,OFFSET(F12,MATCH(0,I12:I26,0)-2,0)*F10*C16/12,IF(OFFSET(I16,-1,0)=1,OFFSET(F12,MATCH(0,I12:I26,0)-2,0)-1,0))))) ->  | F16: =F15-E16 -> 0 | H16: =IF(F9="",IF(SUM(E12:E15)+(F15*F8)<=C8*0.95,1,0),1) ->  | I16: =IF(F15*F8>F9,1,0) -> 
A17: 1905 | B17: 6 | C17: =IF(OR($C$3="",$C$6=""),0,IF(DATEDIF(DATE(YEAR(C6),MONTH(C6),1),DATE(YEAR(C7),MONTH(C7)+1,1),"m")-SUM(C12:C16)>=12,12,DATEDIF(DATE(YEAR(C6),MONTH(C6),1),DATE(YEAR(C7),MONTH(C7)+1,1),"m")-SUM(C12:C16))) -> 0 | D17: =IF(F8="","",IF(F6="旧定率法",IF(F16*F8<=F16-C8*0.05,F16*F8*C17/12,IF(OFFSET(H17,-1,0)=1,(F16-C8*0.05)*C17/12,IF(F16-OFFSET(F12,MATCH(0,H12:H26,0)-1,0)/5<=0,F16-1,OFFSET(F12,MATCH(0,H12:H26,0)-1,0)/5*C17/12))),IF(F16*F8>F9,F16*F8*C17/12,IF(OFFSET(F12,MATCH(0,I12:I26,0)-2,0)-OFFSET(F12,MATCH(0,I12:I26,0)-2,0)*F10>0,OFFSET(F12,MATCH(0,I12:I26,0)-2,0)*F10*C17/12,IF(OFFSET(I17,-1,0)=1,OFFSET(F12,MATCH(0,I12:I26,0)-2,0)-1,0))))) ->  | F17: =F16-E17 -> 0 | H17: =IF(F9="",IF(SUM(E12:E16)+(F16*F8)<=C8*0.95,1,0),1) ->  | I17: =IF(F16*F8>F9,1,0) -> 
A18: 1906 | B18: 7 | C18: =IF(OR($C$3="",$C$6=""),0,IF(DATEDIF(DATE(YEAR(C6),MONTH(C6),1),DATE(YEAR(C7),MONTH(C7)+1,1),"m")-SUM(C12:C17)>=12,12,DATEDIF(DATE(YEAR(C6),MONTH(C6),1),DATE(YEAR(C7),MONTH(C7)+1,1),"m")-SUM(C12:C17))) -> 0 | D18: =IF(F8="","",IF(F6="旧定率法",IF(F17*F8<=F17-C8*0.05,F17*F8*C18/12,IF(OFFSET(H18,-1,0)=1,(F17-C8*0.05)*C18/12,IF(F17-OFFSET(F12,MATCH(0,H12:H26,0)-1,0)/5<=0,F17-1,OFFSET(F12,MATCH(0,H12:H26,0)-1,0)/5*C18/12))),IF(F17*F8>F9,F17*F8*C18/12,IF(OFFSET(F12,MATCH(0,I12:I26,0)-2,0)-OFFSET(F12,MATCH(0,I12:I26,0)-2,0)*F10>0,OFFSET(F12,MATCH(0,I12:I26,0)-2,0)*F10*C18/12,IF(OFFSET(I18,-1,0)=1,OFFSET(F12,MATCH(0,I12:I26,0)-2,0)-1,0))))) ->  | F18: 0 | H18: =IF(F9="",IF(SUM(E12:E17)+(F17*F8)<=C8*0.95,1,0),1) ->  | I18: =IF(F17*F8>F9,1,0) -> 
A19: 1907 | B19: 8 | C19: =IF(OR($C$3="",$C$6=""),0,IF(DATEDIF(DATE(YEAR(C6),MONTH(C6),1),DATE(YEAR(C7),MONTH(C7)+1,1),"m")-SUM(C12:C18)>=12,12,DATEDIF(DATE(YEAR(C6),MONTH(C6),1),DATE(YEAR(C7),MONTH(C7)+1,1),"m")-SUM(C12:C18))) -> 0 | D19: =IF(F8="","",IF(F6="旧定率法",IF(F18*F8<=F18-C8*0.05,F18*F8*C19/12,IF(OFFSET(H19,-1,0)=1,(F18-C8*0.05)*C19/12,IF(F18-OFFSET(F12,MATCH(0,H12:H26,0)-1,0)/5<=0,F18-1,OFFSET(F12,MATCH(0,H12:H26,0)-1,0)/5*C19/12))),IF(F18*F8>F9,F18*F8*C19/12,IF(OFFSET(F12,MATCH(0,I12:I26,0)-2,0)-OFFSET(F12,MATCH(0,I12:I26,0)-2,0)*F10>0,OFFSET(F12,MATCH(0,I12:I26,0)-2,0)*F10*C19/12,IF(OFFSET(I19,-1,0)=1,OFFSET(F12,MATCH(0,I12:I26,0)-2,0)-1,0))))) ->  | F19: 0 | H19: =IF(F9="",IF(SUM(E12:E18)+(F18*F8)<=C8*0.95,1,0),1) ->  | I19: =IF(F18*F8>F9,1,0) -> 
A20: =A19+1 -> 1908 | B20: 9 | C20: =IF(OR($C$3="",$C$6=""),0,IF(DATEDIF(DATE(YEAR(C6),MONTH(C6),1),DATE(YEAR(C7),MONTH(C7)+1,1),"m")-SUM(C12:C19)>=12,12,DATEDIF(DATE(YEAR(C6),MONTH(C6),1),DATE(YEAR(C7),MONTH(C7)+1,1),"m")-SUM(C12:C19))) -> 0 | D20: =IF(F8="","",IF(F6="旧定率法",IF(F19*F8<=F19-C8*0.05,F19*F8*C20/12,IF(OFFSET(H20,-1,0)=1,(F19-C8*0.05)*C20/12,IF(F19-OFFSET(F12,MATCH(0,H12:H26,0)-1,0)/5<=0,F19-1,OFFSET(F12,MATCH(0,H12:H26,0)-1,0)/5*C20/12))),IF(F19*F8>F9,F19*F8*C20/12,IF(OFFSET(F12,MATCH(0,I12:I26,0)-2,0)-OFFSET(F12,MATCH(0,I12:I26,0)-2,0)*F10>0,OFFSET(F12,MATCH(0,I12:I26,0)-2,0)*F10*C20/12,IF(OFFSET(I20,-1,0)=1,OFFSET(F12,MATCH(0,I12:I26,0)-2,0)-1,0))))) ->  | F20: =F19-E20 -> 0 | H20: =IF(F9="",IF(SUM(E12:E19)+(F19*F8)<=C8*0.95,1,0),1) ->  | I20: =IF(F19*F8>F9,1,0) -> 
A21: =A20+1 -> 1909 | B21: 10 | C21: =IF(OR($C$3="",$C$6=""),0,IF(DATEDIF(DATE(YEAR(C6),MONTH(C6),1),DATE(YEAR(C7),MONTH(C7)+1,1),"m")-SUM(C12:C20)>=12,12,DATEDIF(DATE(YEAR(C6),MONTH(C6),1),DATE(YEAR(C7),MONTH(C7)+1,1),"m")-SUM(C12:C20))) -> 0 | D21: =IF(F8="","",IF(F6="旧定率法",IF(F20*F8<=F20-C8*0.05,F20*F8*C21/12,IF(OFFSET(H21,-1,0)=1,(F20-C8*0.05)*C21/12,IF(F20-OFFSET(F12,MATCH(0,H12:H26,0)-1,0)/5<=0,F20-1,OFFSET(F12,MATCH(0,H12:H26,0)-1,0)/5*C21/12))),IF(F20*F8>F9,F20*F8*C21/12,IF(OFFSET(F12,MATCH(0,I12:I26,0)-2,0)-OFFSET(F12,MATCH(0,I12:I26,0)-2,0)*F10>0,OFFSET(F12,MATCH(0,I12:I26,0)-2,0)*F10*C21/12,IF(OFFSET(I21,-1,0)=1,OFFSET(F12,MATCH(0,I12:I26,0)-2,0)-1,0))))) ->  | F21: 0 | H21: =IF(F9="",IF(SUM(E12:E20)+(F20*F8)<=C8*0.95,1,0),1) ->  | I21: =IF(F20*F8>F9,1,0) -> 
A22: =A21+1 -> 1910 | B22: 11 | C22: =IF(OR($C$3="",$C$6=""),0,IF(DATEDIF(DATE(YEAR(C6),MONTH(C6),1),DATE(YEAR(C7),MONTH(C7)+1,1),"m")-SUM(C12:C21)>=12,12,DATEDIF(DATE(YEAR(C6),MONTH(C6),1),DATE(YEAR(C7),MONTH(C7)+1,1),"m")-SUM(C12:C21))) -> 0 | D22: =IF(F8="","",IF(F6="旧定率法",IF(F21*F8<=F21-C8*0.05,F21*F8*C22/12,IF(OFFSET(H22,-1,0)=1,(F21-C8*0.05)*C22/12,IF(F21-OFFSET(F12,MATCH(0,H12:H26,0)-1,0)/5<=0,F21-1,OFFSET(F12,MATCH(0,H12:H26,0)-1,0)/5*C22/12))),IF(F21*F8>F9,F21*F8*C22/12,IF(OFFSET(F12,MATCH(0,I12:I26,0)-2,0)-OFFSET(F12,MATCH(0,I12:I26,0)-2,0)*F10>0,OFFSET(F12,MATCH(0,I12:I26,0)-2,0)*F10*C22/12,IF(OFFSET(I22,-1,0)=1,OFFSET(F12,MATCH(0,I12:I26,0)-2,0)-1,0))))) ->  | F22: 0 | H22: =IF(F9="",IF(SUM(E12:E21)+(F21*F8)<=C8*0.95,1,0),1) ->  | I22: =IF(F21*F8>F9,1,0) -> 
A23: 1911 | B23: 12 | C23: =IF(OR($C$3="",$C$6=""),0,IF(DATEDIF(DATE(YEAR(C6),MONTH(C6),1),DATE(YEAR(C7),MONTH(C7)+1,1),"m")-SUM(C12:C22)>=12,12,DATEDIF(DATE(YEAR(C6),MONTH(C6),1),DATE(YEAR(C7),MONTH(C7)+1,1),"m")-SUM(C12:C22))) -> 0 | D23: =IF(F8="","",IF(F6="旧定率法",IF(F22*F8<=F22-C8*0.05,F22*F8*C23/12,IF(OFFSET(H23,-1,0)=1,(F22-C8*0.05)*C23/12,IF(F22-OFFSET(F12,MATCH(0,H12:H26,0)-1,0)/5<=0,F22-1,OFFSET(F12,MATCH(0,H12:H26,0)-1,0)/5*C23/12))),IF(F22*F8>F9,F22*F8*C23/12,IF(OFFSET(F12,MATCH(0,I12:I26,0)-2,0)-OFFSET(F12,MATCH(0,I12:I26,0)-2,0)*F10>0,OFFSET(F12,MATCH(0,I12:I26,0)-2,0)*F10*C23/12,IF(OFFSET(I23,-1,0)=1,OFFSET(F12,MATCH(0,I12:I26,0)-2,0)-1,0))))) ->  | F23: 0 | H23: =IF(F9="",IF(SUM(E12:E22)+(F22*F8)<=C8*0.95,1,0),1) ->  | I23: =IF(F22*F8>F9,1,0) -> 
A24: 1912 | B24: 13 | C24: =IF(OR($C$3="",$C$6=""),0,IF(DATEDIF(DATE(YEAR(C6),MONTH(C6),1),DATE(YEAR(C7),MONTH(C7)+1,1),"m")-SUM(C12:C23)>=12,12,DATEDIF(DATE(YEAR(C6),MONTH(C6),1),DATE(YEAR(C7),MONTH(C7)+1,1),"m")-SUM(C12:C23))) -> 0 | D24: =IF(F8="","",IF(F6="旧定率法",IF(F23*F8<=F23-C8*0.05,F23*F8*C24/12,IF(OFFSET(H24,-1,0)=1,(F23-C8*0.05)*C24/12,IF(F23-OFFSET(F12,MATCH(0,H12:H26,0)-1,0)/5<=0,F23-1,OFFSET(F12,MATCH(0,H12:H26,0)-1,0)/5*C24/12))),IF(F23*F8>F9,F23*F8*C24/12,IF(OFFSET(F12,MATCH(0,I12:I26,0)-2,0)-OFFSET(F12,MATCH(0,I12:I26,0)-2,0)*F10>0,OFFSET(F12,MATCH(0,I12:I26,0)-2,0)*F10*C24/12,IF(OFFSET(I24,-1,0)=1,OFFSET(F12,MATCH(0,I12:I26,0)-2,0)-1,0))))) ->  | F24: 0 | H24: =IF(F9="",IF(SUM(E12:E23)+(F23*F8)<=C8*0.95,1,0),1) ->  | I24: =IF(F23*F8>F9,1,0) -> 
A25: 1913 | B25: 14 | C25: =IF(OR($C$3="",$C$6=""),0,IF(DATEDIF(DATE(YEAR(C6),MONTH(C6),1),DATE(YEAR(C7),MONTH(C7)+1,1),"m")-SUM(C12:C24)>=12,12,DATEDIF(DATE(YEAR(C6),MONTH(C6),1),DATE(YEAR(C7),MONTH(C7)+1,1),"m")-SUM(C12:C24))) -> 0 | D25: =IF(F8="","",IF(F6="旧定率法",IF(F24*F8<=F24-C8*0.05,F24*F8*C25/12,IF(OFFSET(H25,-1,0)=1,(F24-C8*0.05)*C25/12,IF(F24-OFFSET(F12,MATCH(0,H12:H26,0)-1,0)/5<=0,F24-1,OFFSET(F12,MATCH(0,H12:H26,0)-1,0)/5*C25/12))),IF(F24*F8>F9,F24*F8*C25/12,IF(OFFSET(F12,MATCH(0,I12:I26,0)-2,0)-OFFSET(F12,MATCH(0,I12:I26,0)-2,0)*F10>0,OFFSET(F12,MATCH(0,I12:I26,0)-2,0)*F10*C25/12,IF(OFFSET(I25,-1,0)=1,OFFSET(F12,MATCH(0,I12:I26,0)-2,0)-1,0))))) ->  | F25: 0 | H25: =IF(F9="",IF(SUM(E12:E24)+(F24*F8)<=C8*0.95,1,0),1) ->  | I25: =IF(F24*F8>F9,1,0) -> 
A26: 1914 | B26: 15 | C26: =IF(OR($C$3="",$C$6=""),0,IF(DATEDIF(DATE(YEAR(C6),MONTH(C6),1),DATE(YEAR(C7),MONTH(C7)+1,1),"m")-SUM(C12:C25)>=12,12,DATEDIF(DATE(YEAR(C6),MONTH(C6),1),DATE(YEAR(C7),MONTH(C7)+1,1),"m")-SUM(C12:C25))) -> 0 | D26: =IF(F8="","",IF(F6="旧定率法",IF(F25*F8<=F25-C8*0.05,F25*F8*C26/12,IF(OFFSET(H26,-1,0)=1,(F25-C8*0.05)*C26/12,IF(F25-OFFSET(F12,MATCH(0,H12:H26,0)-1,0)/5<=0,F25-1,OFFSET(F12,MATCH(0,H12:H26,0)-1,0)/5*C26/12))),IF(F25*F8>F9,F25*F8*C26/12,IF(OFFSET(F12,MATCH(0,I12:I26,0)-2,0)-OFFSET(F12,MATCH(0,I12:I26,0)-2,0)*F10>0,OFFSET(F12,MATCH(0,I12:I26,0)-2,0)*F10*C26/12,IF(OFFSET(I26,-1,0)=1,OFFSET(F12,MATCH(0,I12:I26,0)-2,0)-1,0))))) ->  | F26: 0 | G26: ① | H26: =IF(F9="",IF(SUM(E12:E25)+(F25*F8)<=C8*0.95,1,0),1) ->  | I26: =IF(F25*F8>F9,1,0) -> 
A28: 財産名②：
B29: 登録日： | E29: 償却方法： | F29: =IF(C29<=DATE(2007,3,31),"旧定率法","定率法") -> 旧定率法
B30: 処分時期： | E30: 耐用年数：
B31: 財産取得価格(税抜)： | E31: 償却率： | F31: =IF(F30="","",IF(C29<=DATE(2007,3,31),VLOOKUP(F30,'（削除禁止）償却率'!A:J,4,FALSE),IF(C29>=DATE(2012,4,1),VLOOKUP(F30,'（削除禁止）償却率'!A:J,8,FALSE),VLOOKUP(F30,'（削除禁止）償却率'!A:J,5,FALSE)))) -> 
B32: 保証率： | C32: =IF(C29<=DATE(2007,3,31),"",IF(C29>=DATE(2012,4,1),VLOOKUP(F30,'（削除禁止）償却率'!A:J,10,FALSE),VLOOKUP(F30,'（削除禁止）償却率'!A:J,7,FALSE))) ->  | E32: 償却保証額： | F32: =IF(C32="","",C31*C32) -> 
E33: 改定償却率： | F33: =IF(C29<=DATE(2007,3,31),"",IF(C29>=DATE(2012,4,1),VLOOKUP(F30,'（削除禁止）償却率'!A:J,9,FALSE),VLOOKUP(F30,'（削除禁止）償却率'!A:J,6,FALSE))) -> 
A34: 西暦 | C34: か月 | E34: 償却額 （端数処理後） | F34: 期末帳簿価格
A35: =IF(C3=12,YEAR(C29),IF(C3<MONTH(C29),YEAR(C29),YEAR(C29)-1)) -> 1900 | B35: 1 | C35: =IF(OR($C$3="",$C$6=""),0,IF($C$3=12,12-MONTH(C29)+1,IF($C$3<MONTH(C29),$C$3-MONTH(C29)+12+1,$C$3-MONTH(C29)+1))) -> 0 | D35: =IF(F31="","",IF(AND(F29="定率法",$C$31*$F$31<$F$32),$C$31*$F$33*$C35/12,$C$31*$F$31*$C35/12)) ->  | F35: =C31-E35 -> 0 | H35: =IF(F32="",IF(SUM(E35:E35)+(C31*F31)<=C31*0.95,1,0),1) ->  | I35: =IF(C31*F31>F32,1,0) -> 
A36: =A35+1 -> 1901 | B36: 2 | C36: =IF(OR($C$3="",$C$6=""),0,IF(DATEDIF(DATE(YEAR(C29),MONTH(C29),1),DATE(YEAR(C30),MONTH(C30)+1,1),"m")-SUM(C35:C35)>=12,12,DATEDIF(DATE(YEAR(C29),MONTH(C29),1),DATE(YEAR(C30),MONTH(C30)+1,1),"m")-SUM(C35:C35))) -> 0 | D36: =IF(F31="","",IF($F$29="旧定率法",IF($F35*$F$31<=$F35-$C$31*0.05,$F35*F31*$C36/12,IF(OFFSET($H36,-1,0)=1,($F35-$C$31*0.05)*$C36/12,IF($F35-OFFSET($F35,MATCH(0,$H$35:$H$49,0)-1,0)/5<=0,$F35-1,OFFSET($F35,MATCH(0,$H$35:$H$49,0)-1,0)/5*$C36/12))), IF($F35*$F$31>$F$32,$F35*$F$31*$C36/12, IF(OFFSET($F$35,MATCH(0,$I$35:$I$49,0)-2,0)*IF($I36=0,$F$33,$F$31)>=$F35,($F35-1),OFFSET($F$35,MATCH(0,$I$35:$I$49,0)-2,0)*IF($I36=0,$F$33,$F$31))*$C36/12))) ->  | F36: =F35-E36 -> 0 | H36: =IF(F32="",IF(SUM(E35:E35)+(F35*F31)<=C31*0.95,1,0),1) ->  | I36: =IF(F35*F31>F32,1,0) -> 
A37: 1902 | B37: 3 | C37: =IF(OR($C$3="",$C$6=""),0,IF(DATEDIF(DATE(YEAR(C29),MONTH(C29),1),DATE(YEAR(C30),MONTH(C30)+1,1),"m")-SUM(C35:C36)>=12,12,DATEDIF(DATE(YEAR(C29),MONTH(C29),1),DATE(YEAR(C30),MONTH(C30)+1,1),"m")-SUM(C35:C36))) -> 0 | D37: =IF(F31="","",IF($F$29="旧定率法",IF($F36*$F$31<=$F36-$C$31*0.05,$F36*F32*$C37/12,IF(OFFSET($H37,-1,0)=1,($F36-$C$31*0.05)*$C37/12,IF($F36-OFFSET($F36,MATCH(0,$H$35:$H$49,0)-1,0)/5<=0,$F36-1,OFFSET($F36,MATCH(0,$H$35:$H$49,0)-1,0)/5*$C37/12))), IF($F36*$F$31>$F$32,$F36*$F$31*$C37/12, IF(OFFSET($F$35,MATCH(0,$I$35:$I$49,0)-2,0)*IF($I37=0,$F$33,$F$31)>=$F36,($F36-1),OFFSET($F$35,MATCH(0,$I$35:$I$49,0)-2,0)*IF($I37=0,$F$33,$F$31))*$C37/12))) ->  | F37: =F36-E37 -> 0 | H37: =IF(F32="",IF(SUM(E35:E36)+(F36*F31)<=C31*0.95,1,0),1) ->  | I37: =IF(F36*F31>F32,1,0) -> 
A38: 1903 | B38: 4 | C38: =IF(OR($C$3="",$C$6=""),0,IF(DATEDIF(DATE(YEAR(C29),MONTH(C29),1),DATE(YEAR(C30),MONTH(C30)+1,1),"m")-SUM(C35:C37)>=12,12,DATEDIF(DATE(YEAR(C29),MONTH(C29),1),DATE(YEAR(C30),MONTH(C30)+1,1),"m")-SUM(C35:C37))) -> 0 | D38: =IF(F31="","",IF($F$29="旧定率法",IF($F37*$F$31<=$F37-$C$31*0.05,$F37*F33*$C38/12,IF(OFFSET($H38,-1,0)=1,($F37-$C$31*0.05)*$C38/12,IF($F37-OFFSET($F37,MATCH(0,$H$35:$H$49,0)-1,0)/5<=0,$F37-1,OFFSET($F37,MATCH(0,$H$35:$H$49,0)-1,0)/5*$C38/12))), IF($F37*$F$31>$F$32,$F37*$F$31*$C38/12, IF(OFFSET($F$35,MATCH(0,$I$35:$I$49,0)-2,0)*IF($I38=0,$F$33,$F$31)>=$F37,($F37-1),OFFSET($F$35,MATCH(0,$I$35:$I$49,0)-2,0)*IF($I38=0,$F$33,$F$31))*$C38/12))) ->  | F38: 0 | H38: =IF(F32="",IF(SUM(E35:E37)+(F37*F31)<=C31*0.95,1,0),1) ->  | I38: =IF(F37*F31>F32,1,0) -> 
A39: 1904 | B39: 5 | C39: =IF(OR($C$3="",$C$6=""),0,IF(DATEDIF(DATE(YEAR(C29),MONTH(C29),1),DATE(YEAR(C30),MONTH(C30)+1,1),"m")-SUM(C35:C38)>=12,12,DATEDIF(DATE(YEAR(C29),MONTH(C29),1),DATE(YEAR(C30),MONTH(C30)+1,1),"m")-SUM(C35:C38))) -> 0 | D39: =IF(F31="","",IF($F$29="旧定率法",IF($F38*$F$31<=$F38-$C$31*0.05,$F38*F34*$C39/12,IF(OFFSET($H39,-1,0)=1,($F38-$C$31*0.05)*$C39/12,IF($F38-OFFSET($F38,MATCH(0,$H$35:$H$49,0)-1,0)/5<=0,$F38-1,OFFSET($F38,MATCH(0,$H$35:$H$49,0)-1,0)/5*$C39/12))), IF($F38*$F$31>$F$32,$F38*$F$31*$C39/12, IF(OFFSET($F$35,MATCH(0,$I$35:$I$49,0)-2,0)*IF($I39=0,$F$33,$F$31)>=$F38,($F38-1),OFFSET($F$35,MATCH(0,$I$35:$I$49,0)-2,0)*IF($I39=0,$F$33,$F$31))*$C39/12))) ->  | F39: 0 | H39: =IF(F32="",IF(SUM(E35:E38)+(F38*F31)<=C31*0.95,1,0),1) ->  | I39: =IF(F38*F31>F32,1,0) -> 
A40: 1905 | B40: 6 | C40: =IF(OR($C$3="",$C$6=""),0,IF(DATEDIF(DATE(YEAR(C29),MONTH(C29),1),DATE(YEAR(C30),MONTH(C30)+1,1),"m")-SUM(C35:C39)>=12,12,DATEDIF(DATE(YEAR(C29),MONTH(C29),1),DATE(YEAR(C30),MONTH(C30)+1,1),"m")-SUM(C35:C39))) -> 0 | D40: =IF(F31="","",IF($F$29="旧定率法",IF($F39*$F$31<=$F39-$C$31*0.05,$F39*F35*$C40/12,IF(OFFSET($H40,-1,0)=1,($F39-$C$31*0.05)*$C40/12,IF($F39-OFFSET($F39,MATCH(0,$H$35:$H$49,0)-1,0)/5<=0,$F39-1,OFFSET($F39,MATCH(0,$H$35:$H$49,0)-1,0)/5*$C40/12))), IF($F39*$F$31>$F$32,$F39*$F$31*$C40/12, IF(OFFSET($F$35,MATCH(0,$I$35:$I$49,0)-2,0)*IF($I40=0,$F$33,$F$31)>=$F39,($F39-1),OFFSET($F$35,MATCH(0,$I$35:$I$49,0)-2,0)*IF($I40=0,$F$33,$F$31))*$C40/12))) ->  | F40: 0 | H40: =IF(F32="",IF(SUM(E35:E39)+(F39*F31)<=C31*0.95,1,0),1) ->  | I40: =IF(F39*F31>F32,1,0) -> 
A41: 1906 | B41: 7 | C41: =IF(OR($C$3="",$C$6=""),0,IF(DATEDIF(DATE(YEAR(C29),MONTH(C29),1),DATE(YEAR(C30),MONTH(C30)+1,1),"m")-SUM(C35:C40)>=12,12,DATEDIF(DATE(YEAR(C29),MONTH(C29),1),DATE(YEAR(C30),MONTH(C30)+1,1),"m")-SUM(C35:C40))) -> 0 | D41: =IF(F31="","",IF($F$29="旧定率法",IF($F40*$F$31<=$F40-$C$31*0.05,$F40*F36*$C41/12,IF(OFFSET($H41,-1,0)=1,($F40-$C$31*0.05)*$C41/12,IF($F40-OFFSET($F40,MATCH(0,$H$35:$H$49,0)-1,0)/5<=0,$F40-1,OFFSET($F40,MATCH(0,$H$35:$H$49,0)-1,0)/5*$C41/12))), IF($F40*$F$31>$F$32,$F40*$F$31*$C41/12, IF(OFFSET($F$35,MATCH(0,$I$35:$I$49,0)-2,0)*IF($I41=0,$F$33,$F$31)>=$F40,($F40-1),OFFSET($F$35,MATCH(0,$I$35:$I$49,0)-2,0)*IF($I41=0,$F$33,$F$31))*$C41/12))) ->  | F41: 0 | H41: =IF(F32="",IF(SUM(E35:E40)+(F40*F31)<=C31*0.95,1,0),1) ->  | I41: =IF(F40*F31>F32,1,0) -> 
A42: 1907 | B42: 8 | C42: =IF(OR($C$3="",$C$6=""),0,IF(DATEDIF(DATE(YEAR(C29),MONTH(C29),1),DATE(YEAR(C30),MONTH(C30)+1,1),"m")-SUM(C35:C41)>=12,12,DATEDIF(DATE(YEAR(C29),MONTH(C29),1),DATE(YEAR(C30),MONTH(C30)+1,1),"m")-SUM(C35:C41))) -> 0 | D42: =IF(F31="","",IF($F$29="旧定率法",IF($F41*$F$31<=$F41-$C$31*0.05,$F41*F37*$C42/12,IF(OFFSET($H42,-1,0)=1,($F41-$C$31*0.05)*$C42/12,IF($F41-OFFSET($F41,MATCH(0,$H$35:$H$49,0)-1,0)/5<=0,$F41-1,OFFSET($F41,MATCH(0,$H$35:$H$49,0)-1,0)/5*$C42/12))), IF($F41*$F$31>$F$32,$F41*$F$31*$C42/12, IF(OFFSET($F$35,MATCH(0,$I$35:$I$49,0)-2,0)*IF($I42=0,$F$33,$F$31)>=$F41,($F41-1),OFFSET($F$35,MATCH(0,$I$35:$I$49,0)-2,0)*IF($I42=0,$F$33,$F$31))*$C42/12))) ->  | F42: 0 | H42: =IF(F32="",IF(SUM(E35:E41)+(F41*F31)<=C31*0.95,1,0),1) ->  | I42: =IF(F41*F31>F32,1,0) -> 
A43: 1908 | B43: 9 | C43: =IF(OR($C$3="",$C$6=""),0,IF(DATEDIF(DATE(YEAR(C29),MONTH(C29),1),DATE(YEAR(C30),MONTH(C30)+1,1),"m")-SUM(C35:C42)>=12,12,DATEDIF(DATE(YEAR(C29),MONTH(C29),1),DATE(YEAR(C30),MONTH(C30)+1,1),"m")-SUM(C35:C42))) -> 0 | D43: =IF(F31="","",IF($F$29="旧定率法",IF($F42*$F$31<=$F42-$C$31*0.05,$F42*F38*$C43/12,IF(OFFSET($H43,-1,0)=1,($F42-$C$31*0.05)*$C43/12,IF($F42-OFFSET($F42,MATCH(0,$H$35:$H$49,0)-1,0)/5<=0,$F42-1,OFFSET($F42,MATCH(0,$H$35:$H$49,0)-1,0)/5*$C43/12))), IF($F42*$F$31>$F$32,$F42*$F$31*$C43/12, IF(OFFSET($F$35,MATCH(0,$I$35:$I$49,0)-2,0)*IF($I43=0,$F$33,$F$31)>=$F42,($F42-1),OFFSET($F$35,MATCH(0,$I$35:$I$49,0)-2,0)*IF($I43=0,$F$33,$F$31))*$C43/12))) ->  | F43: 0 | H43: =IF(F32="",IF(SUM(E35:E42)+(F42*F31)<=C31*0.95,1,0),1) ->  | I43: =IF(F42*F31>F32,1,0) -> 
A44: =A43+1 -> 1909 | B44: 10 | C44: =IF(OR($C$3="",$C$6=""),0,IF(DATEDIF(DATE(YEAR(C29),MONTH(C29),1),DATE(YEAR(C30),MONTH(C30)+1,1),"m")-SUM(C35:C43)>=12,12,DATEDIF(DATE(YEAR(C29),MONTH(C29),1),DATE(YEAR(C30),MONTH(C30)+1,1),"m")-SUM(C35:C43))) -> 0 | D44: =IF(F31="","",IF($F$29="旧定率法",IF($F43*$F$31<=$F43-$C$31*0.05,$F43*F39*$C44/12,IF(OFFSET($H44,-1,0)=1,($F43-$C$31*0.05)*$C44/12,IF($F43-OFFSET($F43,MATCH(0,$H$35:$H$49,0)-1,0)/5<=0,$F43-1,OFFSET($F43,MATCH(0,$H$35:$H$49,0)-1,0)/5*$C44/12))), IF($F43*$F$31>$F$32,$F43*$F$31*$C44/12, IF(OFFSET($F$35,MATCH(0,$I$35:$I$49,0)-2,0)*IF($I44=0,$F$33,$F$31)>=$F43,($F43-1),OFFSET($F$35,MATCH(0,$I$35:$I$49,0)-2,0)*IF($I44=0,$F$33,$F$31))*$C44/12))) ->  | F44: 0 | H44: =IF(F32="",IF(SUM(E35:E43)+(F43*F31)<=C31*0.95,1,0),1) ->  | I44: =IF(F43*F31>F32,1,0) -> 
A45: =A44+1 -> 1910 | B45: 11 | C45: =IF(OR($C$3="",$C$6=""),0,IF(DATEDIF(DATE(YEAR(C29),MONTH(C29),1),DATE(YEAR(C30),MONTH(C30)+1,1),"m")-SUM(C35:C44)>=12,12,DATEDIF(DATE(YEAR(C29),MONTH(C29),1),DATE(YEAR(C30),MONTH(C30)+1,1),"m")-SUM(C35:C44))) -> 0 | D45: =IF(F31="","",IF($F$29="旧定率法",IF($F44*$F$31<=$F44-$C$31*0.05,$F44*F40*$C45/12,IF(OFFSET($H45,-1,0)=1,($F44-$C$31*0.05)*$C45/12,IF($F44-OFFSET($F44,MATCH(0,$H$35:$H$49,0)-1,0)/5<=0,$F44-1,OFFSET($F44,MATCH(0,$H$35:$H$49,0)-1,0)/5*$C45/12))), IF($F44*$F$31>$F$32,$F44*$F$31*$C45/12, IF(OFFSET($F$35,MATCH(0,$I$35:$I$49,0)-2,0)*IF($I45=0,$F$33,$F$31)>=$F44,($F44-1),OFFSET($F$35,MATCH(0,$I$35:$I$49,0)-2,0)*IF($I45=0,$F$33,$F$31))*$C45/12))) ->  | F45: 0 | H45: =IF(F32="",IF(SUM(E35:E44)+(F44*F31)<=C31*0.95,1,0),1) ->  | I45: =IF(F44*F31>F32,1,0) -> 
A46: =A45+1 -> 1911 | B46: 12 | C46: =IF(OR($C$3="",$C$6=""),0,IF(DATEDIF(DATE(YEAR(C29),MONTH(C29),1),DATE(YEAR(C30),MONTH(C30)+1,1),"m")-SUM(C35:C45)>=12,12,DATEDIF(DATE(YEAR(C29),MONTH(C29),1),DATE(YEAR(C30),MONTH(C30)+1,1),"m")-SUM(C35:C45))) -> 0 | D46: =IF(F31="","",IF($F$29="旧定率法",IF($F45*$F$31<=$F45-$C$31*0.05,$F45*F41*$C46/12,IF(OFFSET($H46,-1,0)=1,($F45-$C$31*0.05)*$C46/12,IF($F45-OFFSET($F45,MATCH(0,$H$35:$H$49,0)-1,0)/5<=0,$F45-1,OFFSET($F45,MATCH(0,$H$35:$H$49,0)-1,0)/5*$C46/12))), IF($F45*$F$31>$F$32,$F45*$F$31*$C46/12, IF(OFFSET($F$35,MATCH(0,$I$35:$I$49,0)-2,0)*IF($I46=0,$F$33,$F$31)>=$F45,($F45-1),OFFSET($F$35,MATCH(0,$I$35:$I$49,0)-2,0)*IF($I46=0,$F$33,$F$31))*$C46/12))) ->  | F46: 0 | H46: =IF(F32="",IF(SUM(E35:E45)+(F45*F31)<=C31*0.95,1,0),1) ->  | I46: =IF(F45*F31>F32,1,0) -> 
A47: 1912 | B47: 13 | C47: =IF(OR($C$3="",$C$6=""),0,IF(DATEDIF(DATE(YEAR(C29),MONTH(C29),1),DATE(YEAR(C30),MONTH(C30)+1,1),"m")-SUM(C35:C46)>=12,12,DATEDIF(DATE(YEAR(C29),MONTH(C29),1),DATE(YEAR(C30),MONTH(C30)+1,1),"m")-SUM(C35:C46))) -> 0 | D47: =IF(F31="","",IF($F$29="旧定率法",IF($F46*$F$31<=$F46-$C$31*0.05,$F46*F42*$C47/12,IF(OFFSET($H47,-1,0)=1,($F46-$C$31*0.05)*$C47/12,IF($F46-OFFSET($F46,MATCH(0,$H$35:$H$49,0)-1,0)/5<=0,$F46-1,OFFSET($F46,MATCH(0,$H$35:$H$49,0)-1,0)/5*$C47/12))), IF($F46*$F$31>$F$32,$F46*$F$31*$C47/12, IF(OFFSET($F$35,MATCH(0,$I$35:$I$49,0)-2,0)*IF($I47=0,$F$33,$F$31)>=$F46,($F46-1),OFFSET($F$35,MATCH(0,$I$35:$I$49,0)-2,0)*IF($I47=0,$F$33,$F$31))*$C47/12))) ->  | F47: 0 | H47: =IF(F32="",IF(SUM(E35:E46)+(F46*F31)<=C31*0.95,1,0),1) ->  | I47: =IF(F46*F31>F32,1,0) -> 
A48: 1913 | B48: 14 | C48: =IF(OR($C$3="",$C$6=""),0,IF(DATEDIF(DATE(YEAR(C29),MONTH(C29),1),DATE(YEAR(C30),MONTH(C30)+1,1),"m")-SUM(C35:C47)>=12,12,DATEDIF(DATE(YEAR(C29),MONTH(C29),1),DATE(YEAR(C30),MONTH(C30)+1,1),"m")-SUM(C35:C47))) -> 0 | D48: =IF(F31="","",IF($F$29="旧定率法",IF($F47*$F$31<=$F47-$C$31*0.05,$F47*F43*$C48/12,IF(OFFSET($H48,-1,0)=1,($F47-$C$31*0.05)*$C48/12,IF($F47-OFFSET($F47,MATCH(0,$H$35:$H$49,0)-1,0)/5<=0,$F47-1,OFFSET($F47,MATCH(0,$H$35:$H$49,0)-1,0)/5*$C48/12))), IF($F47*$F$31>$F$32,$F47*$F$31*$C48/12, IF(OFFSET($F$35,MATCH(0,$I$35:$I$49,0)-2,0)*IF($I48=0,$F$33,$F$31)>=$F47,($F47-1),OFFSET($F$35,MATCH(0,$I$35:$I$49,0)-2,0)*IF($I48=0,$F$33,$F$31))*$C48/12))) ->  | F48: 0 | H48: =IF(F32="",IF(SUM(E35:E47)+(F47*F31)<=C31*0.95,1,0),1) ->  | I48: =IF(F47*F31>F32,1,0) -> 
A49: 1914 | B49: 15 | C49: =IF(OR($C$3="",$C$6=""),0,IF(DATEDIF(DATE(YEAR(C29),MONTH(C29),1),DATE(YEAR(C30),MONTH(C30)+1,1),"m")-SUM(C35:C48)>=12,12,DATEDIF(DATE(YEAR(C29),MONTH(C29),1),DATE(YEAR(C30),MONTH(C30)+1,1),"m")-SUM(C35:C48))) -> 0 | D49: =IF(F31="","",IF($F$29="旧定率法",IF($F48*$F$31<=$F48-$C$31*0.05,$F48*F44*$C49/12,IF(OFFSET($H49,-1,0)=1,($F48-$C$31*0.05)*$C49/12,IF($F48-OFFSET($F48,MATCH(0,$H$35:$H$49,0)-1,0)/5<=0,$F48-1,OFFSET($F48,MATCH(0,$H$35:$H$49,0)-1,0)/5*$C49/12))), IF($F48*$F$31>$F$32,$F48*$F$31*$C49/12, IF(OFFSET($F$35,MATCH(0,$I$35:$I$49,0)-2,0)*IF($I49=0,$F$33,$F$31)>=$F48,($F48-1),OFFSET($F$35,MATCH(0,$I$35:$I$49,0)-2,0)*IF($I49=0,$F$33,$F$31))*$C49/12))) ->  | F49: 0 | G49: ② | H49: =IF(F32="",IF(SUM(E35:E48)+(F48*F31)<=C31*0.95,1,0),1) ->  | I49: =IF(F48*F31>F32,1,0) -> 
A51: ２．補助割合
A52: 各年度の年度末中間検査、確定検査の経費発生調書に記載されている数字の転記(補助金の額が確定している場合)
A54: 補助期間 （年度） | B54: 補助対象費用欄【e】の補助金額 | C54: 補助対象費用欄【e】のⅣ-2学術機関等共同研究費 | D54: 当年度発生額合計欄【b】の総計B | E54: 当年度発生学合計欄【b】のⅣ-2学術機関等共同研究費
A58: 合計額 | B58: =SUM(B55:B57) -> 0 | C58: =SUM(C55:C57) -> 0 | D58: =SUM(D55:D57) -> 0 | E58: =SUM(E55:E57) -> 0
A61: ３．補助相当額
B62: 残存簿価相当額（合計） | C62: =F26+F49 -> 0
B63: 補助割合 | C63: =(B58-C58)/(D58-E58) -> 
B65: 補助金相当額 | C65: =ROUNDDOWN(C62*C63,0) -> 

Sheet 定額法
A2: 【残存簿価相当額・補助金相当額計算書】
B3: 決 算 月： | E3: 償却額の端数処理：
A4: １．残存簿価相当額計算
A5: 財産名①：
B6: 登録日： | E6: 償却方法： | F6: =IF(C6<=DATE(2007,3,31),"旧定額法","定額法") -> 旧定額法
B7: 処分時期： | E7: 耐用年数：
B8: 財産取得価格(税抜)： | E8: 償却率： | F8: =IF(F7="","",IF(C6<=DATE(2007,3,31),VLOOKUP(F7,'（削除禁止）償却率'!A:J,2,FALSE),VLOOKUP(F7,'（削除禁止）償却率'!A:J,3,FALSE))) -> 
A11: 西暦 | C11: か月 | E11: 償却額 （端数処理後） | F11: 期末帳簿価格
A12: =IF(C3=12,YEAR(C6),IF(C3<MONTH(C6),YEAR(C6),YEAR(C6)-1)) -> 1900 | B12: 1 | C12: =IF($C$3="",0,IF($C$3=12,12-MONTH(C6)+1,IF($C$3<MONTH(C6),12+$C$3-MONTH(C6)+1,$C$3-MONTH(C6)+1))) -> 0 | D12: =IF(F8="","",IF(F6="旧定額法",C8*F8*0.9*C12/12,C8*F8*C12/12)) ->  | F12: =C8-E12 -> 0 | H12: =IF(C8*F8*0.9>C8-C8*0.05,0,1) -> 
A13: =A12+1 -> 1901 | B13: 2 | C13: =IF($C$3="",0,IF(DATEDIF(DATE(YEAR(C6),MONTH(C6),1),DATE(YEAR(C7),MONTH(C7)+1,1),"m")-SUM(C12:C12)>=12,12,DATEDIF(DATE(YEAR(C6),MONTH(C6),1),DATE(YEAR(C7),MONTH(C7)+1,1),"m")-SUM(C12:C12))) -> 0 | D13: =IF(F8="","",IF(F6="旧定額法",IF(C8*F8*0.9<=F12-C8*0.05,C8*F8*0.9*C13/12,IF(OFFSET(H13,-1,0)=1,(F12-C8*0.05)*C13/12,IF(F12-OFFSET(F12,MATCH(0,H12:H26,0)-1,0)/5<=0,F12-1,(OFFSET(F12,MATCH(0,H12:H26,0)-1,0))/5*C13/12))),IF(IF(F12-C8*F8*C13/12>0,C8*F8*C13/12,F12-1)>0,IF(F12-C8*F8*C13/12>0,C8*F8*C13/12,F12-1),0))) ->  | F13: =F12-E13 -> 0 | H13: =IF(C8*F8*0.9>F12-C8*0.05,0,1) -> 
A14: 1902 | B14: 3 | C14: =IF($C$3="",0,IF(DATEDIF(DATE(YEAR(C6),MONTH(C6),1),DATE(YEAR(C7),MONTH(C7)+1,1),"m")-SUM(C12:C13)>=12,12,DATEDIF(DATE(YEAR(C6),MONTH(C6),1),DATE(YEAR(C7),MONTH(C7)+1,1),"m")-SUM(C12:C13))) -> 0 | D14: =IF(F8="","",IF(F6="旧定額法",IF(C8*F8*0.9<=F13-C8*0.05,C8*F8*0.9*C14/12,IF(OFFSET(H14,-1,0)=1,(F13-C8*0.05)*C14/12,IF(F13-OFFSET(F12,MATCH(0,H12:H26,0)-1,0)/5<=0,F13-1,(OFFSET(F12,MATCH(0,H12:H26,0)-1,0))/5*C14/12))),IF(IF(F13-C8*F8*C14/12>0,C8*F8*C14/12,F13-1)>0,IF(F13-C8*F8*C14/12>0,C8*F8*C14/12,F13-1),0))) ->  | F14: =F13-E14 -> 0 | H14: =IF(C8*F8*0.9>F13-C8*0.05,0,1) -> 
A15: 1903 | B15: 4 | C15: =IF($C$3="",0,IF(DATEDIF(DATE(YEAR(C6),MONTH(C6),1),DATE(YEAR(C7),MONTH(C7)+1,1),"m")-SUM(C12:C14)>=12,12,DATEDIF(DATE(YEAR(C6),MONTH(C6),1),DATE(YEAR(C7),MONTH(C7)+1,1),"m")-SUM(C12:C14))) -> 0 | D15: =IF(F8="","",IF(F6="旧定額法",IF(C8*F8*0.9<=F14-C8*0.05,C8*F8*0.9*C15/12,IF(OFFSET(H15,-1,0)=1,(F14-C8*0.05)*C15/12,IF(F14-OFFSET(F12,MATCH(0,H12:H26,0)-1,0)/5<=0,F14-1,(OFFSET(F12,MATCH(0,H12:H26,0)-1,0))/5*C15/12))),IF(IF(F14-C8*F8*C15/12>0,C8*F8*C15/12,F14-1)>0,IF(F14-C8*F8*C15/12>0,C8*F8*C15/12,F14-1),0))) ->  | F15: 0 | H15: =IF(C8*F8*0.9>F14-C8*0.05,0,1) -> 
A16: 1904 | B16: 5 | C16: =IF($C$3="",0,IF(DATEDIF(DATE(YEAR(C6),MONTH(C6),1),DATE(YEAR(C7),MONTH(C7)+1,1),"m")-SUM(C12:C15)>=12,12,DATEDIF(DATE(YEAR(C6),MONTH(C6),1),DATE(YEAR(C7),MONTH(C7)+1,1),"m")-SUM(C12:C15))) -> 0 | D16: =IF(F8="","",IF(F6="旧定額法",IF(C8*F8*0.9<=F15-C8*0.05,C8*F8*0.9*C16/12,IF(OFFSET(H16,-1,0)=1,(F15-C8*0.05)*C16/12,IF(F15-OFFSET(F12,MATCH(0,H12:H26,0)-1,0)/5<=0,F15-1,(OFFSET(F12,MATCH(0,H12:H26,0)-1,0))/5*C16/12))),IF(IF(F15-C8*F8*C16/12>0,C8*F8*C16/12,F15-1)>0,IF(F15-C8*F8*C16/12>0,C8*F8*C16/12,F15-1),0))) ->  | F16: 0 | H16: =IF(C8*F8*0.9>F15-C8*0.05,0,1) -> 
A17: 1905 | B17: 6 | C17: =IF($C$3="",0,IF(DATEDIF(DATE(YEAR(C6),MONTH(C6),1),DATE(YEAR(C7),MONTH(C7)+1,1),"m")-SUM(C12:C16)>=12,12,DATEDIF(DATE(YEAR(C6),MONTH(C6),1),DATE(YEAR(C7),MONTH(C7)+1,1),"m")-SUM(C12:C16))) -> 0 | D17: =IF(F8="","",IF(F6="旧定額法",IF(C8*F8*0.9<=F16-C8*0.05,C8*F8*0.9*C17/12,IF(OFFSET(H17,-1,0)=1,(F16-C8*0.05)*C17/12,IF(F16-OFFSET(F12,MATCH(0,H12:H26,0)-1,0)/5<=0,F16-1,(OFFSET(F12,MATCH(0,H12:H26,0)-1,0))/5*C17/12))),IF(IF(F16-C8*F8*C17/12>0,C8*F8*C17/12,F16-1)>0,IF(F16-C8*F8*C17/12>0,C8*F8*C17/12,F16-1),0))) ->  | F17: 0 | H17: =IF(C8*F8*0.9>F16-C8*0.05,0,1) -> 
A18: 1906 | B18: 7 | C18: =IF($C$3="",0,IF(DATEDIF(DATE(YEAR(C6),MONTH(C6),1),DATE(YEAR(C7),MONTH(C7)+1,1),"m")-SUM(C12:C17)>=12,12,DATEDIF(DATE(YEAR(C6),MONTH(C6),1),DATE(YEAR(C7),MONTH(C7)+1,1),"m")-SUM(C12:C17))) -> 0 | D18: =IF(F8="","",IF(F6="旧定額法",IF(C8*F8*0.9<=F17-C8*0.05,C8*F8*0.9*C18/12,IF(OFFSET(H18,-1,0)=1,(F17-C8*0.05)*C18/12,IF(F17-OFFSET(F12,MATCH(0,H12:H26,0)-1,0)/5<=0,F17-1,(OFFSET(F12,MATCH(0,H12:H26,0)-1,0))/5*C18/12))),IF(IF(F17-C8*F8*C18/12>0,C8*F8*C18/12,F17-1)>0,IF(F17-C8*F8*C18/12>0,C8*F8*C18/12,F17-1),0))) ->  | F18: 0 | H18: =IF(C8*F8*0.9>F17-C8*0.05,0,1) -> 
A19: 1907 | B19: 8 | C19: =IF($C$3="",0,IF(DATEDIF(DATE(YEAR(C6),MONTH(C6),1),DATE(YEAR(C7),MONTH(C7)+1,1),"m")-SUM(C12:C18)>=12,12,DATEDIF(DATE(YEAR(C6),MONTH(C6),1),DATE(YEAR(C7),MONTH(C7)+1,1),"m")-SUM(C12:C18))) -> 0 | D19: =IF(F8="","",IF(F6="旧定額法",IF(C8*F8*0.9<=F18-C8*0.05,C8*F8*0.9*C19/12,IF(OFFSET(H19,-1,0)=1,(F18-C8*0.05)*C19/12,IF(F18-OFFSET(F12,MATCH(0,H12:H26,0)-1,0)/5<=0,F18-1,(OFFSET(F12,MATCH(0,H12:H26,0)-1,0))/5*C19/12))),IF(IF(F18-C8*F8*C19/12>0,C8*F8*C19/12,F18-1)>0,IF(F18-C8*F8*C19/12>0,C8*F8*C19/12,F18-1),0))) ->  | F19: 0 | H19: =IF(C8*F8*0.9>F18-C8*0.05,0,1) -> 
A20: 1908 | B20: 9 | C20: =IF($C$3="",0,IF(DATEDIF(DATE(YEAR(C6),MONTH(C6),1),DATE(YEAR(C7),MONTH(C7)+1,1),"m")-SUM(C12:C19)>=12,12,DATEDIF(DATE(YEAR(C6),MONTH(C6),1),DATE(YEAR(C7),MONTH(C7)+1,1),"m")-SUM(C12:C19))) -> 0 | D20: =IF(F8="","",IF(F6="旧定額法",IF(C8*F8*0.9<=F19-C8*0.05,C8*F8*0.9*C20/12,IF(OFFSET(H20,-1,0)=1,(F19-C8*0.05)*C20/12,IF(F19-OFFSET(F12,MATCH(0,H12:H26,0)-1,0)/5<=0,F19-1,(OFFSET(F12,MATCH(0,H12:H26,0)-1,0))/5*C20/12))),IF(IF(F19-C8*F8*C20/12>0,C8*F8*C20/12,F19-1)>0,IF(F19-C8*F8*C20/12>0,C8*F8*C20/12,F19-1),0))) ->  | F20: 0 | H20: =IF(C8*F8*0.9>F19-C8*0.05,0,1) -> 
A21: =A20+1 -> 1909 | B21: 10 | C21: =IF($C$3="",0,IF(DATEDIF(DATE(YEAR(C6),MONTH(C6),1),DATE(YEAR(C7),MONTH(C7)+1,1),"m")-SUM(C12:C20)>=12,12,DATEDIF(DATE(YEAR(C6),MONTH(C6),1),DATE(YEAR(C7),MONTH(C7)+1,1),"m")-SUM(C12:C20))) -> 0 | D21: =IF(F8="","",IF(F6="旧定額法",IF(C8*F8*0.9<=F20-C8*0.05,C8*F8*0.9*C21/12,IF(OFFSET(H21,-1,0)=1,(F20-C8*0.05)*C21/12,IF(F20-OFFSET(F12,MATCH(0,H12:H26,0)-1,0)/5<=0,F20-1,(OFFSET(F12,MATCH(0,H12:H26,0)-1,0))/5*C21/12))),IF(IF(F20-C8*F8*C21/12>0,C8*F8*C21/12,F20-1)>0,IF(F20-C8*F8*C21/12>0,C8*F8*C21/12,F20-1),0))) ->  | F21: 0 | H21: =IF(C8*F8*0.9>F20-C8*0.05,0,1) -> 
A22: =A21+1 -> 1910 | B22: 11 | C22: =IF($C$3="",0,IF(DATEDIF(DATE(YEAR(C6),MONTH(C6),1),DATE(YEAR(C7),MONTH(C7)+1,1),"m")-SUM(C12:C21)>=12,12,DATEDIF(DATE(YEAR(C6),MONTH(C6),1),DATE(YEAR(C7),MONTH(C7)+1,1),"m")-SUM(C12:C21))) -> 0 | D22: =IF(F8="","",IF(F6="旧定額法",IF(C8*F8*0.9<=F21-C8*0.05,C8*F8*0.9*C22/12,IF(OFFSET(H22,-1,0)=1,(F21-C8*0.05)*C22/12,IF(F21-OFFSET(F12,MATCH(0,H12:H26,0)-1,0)/5<=0,F21-1,(OFFSET(F12,MATCH(0,H12:H26,0)-1,0))/5*C22/12))),IF(IF(F21-C8*F8*C22/12>0,C8*F8*C22/12,F21-1)>0,IF(F21-C8*F8*C22/12>0,C8*F8*C22/12,F21-1),0))) ->  | F22: 0 | H22: =IF(C8*F8*0.9>F21-C8*0.05,0,1) -> 
A23: 1911 | B23: 12 | C23: =IF($C$3="",0,IF(DATEDIF(DATE(YEAR(C6),MONTH(C6),1),DATE(YEAR(C7),MONTH(C7)+1,1),"m")-SUM(C12:C22)>=12,12,DATEDIF(DATE(YEAR(C6),MONTH(C6),1),DATE(YEAR(C7),MONTH(C7)+1,1),"m")-SUM(C12:C22))) -> 0 | D23: =IF(F8="","",IF(F6="旧定額法",IF(C8*F8*0.9<=F22-C8*0.05,C8*F8*0.9*C23/12,IF(OFFSET(H23,-1,0)=1,(F22-C8*0.05)*C23/12,IF(F22-OFFSET(F12,MATCH(0,H12:H26,0)-1,0)/5<=0,F22-1,(OFFSET(F12,MATCH(0,H12:H26,0)-1,0))/5*C23/12))),IF(IF(F22-C8*F8*C23/12>0,C8*F8*C23/12,F22-1)>0,IF(F22-C8*F8*C23/12>0,C8*F8*C23/12,F22-1),0))) ->  | F23: 0 | H23: =IF(C8*F8*0.9>F22-C8*0.05,0,1) -> 
A24: 1912 | B24: 13 | C24: =IF($C$3="",0,IF(DATEDIF(DATE(YEAR(C6),MONTH(C6),1),DATE(YEAR(C7),MONTH(C7)+1,1),"m")-SUM(C12:C23)>=12,12,DATEDIF(DATE(YEAR(C6),MONTH(C6),1),DATE(YEAR(C7),MONTH(C7)+1,1),"m")-SUM(C12:C23))) -> 0 | D24: =IF(F8="","",IF(F6="旧定額法",IF(C8*F8*0.9<=F23-C8*0.05,C8*F8*0.9*C24/12,IF(OFFSET(H24,-1,0)=1,(F23-C8*0.05)*C24/12,IF(F23-OFFSET(F12,MATCH(0,H12:H26,0)-1,0)/5<=0,F23-1,(OFFSET(F12,MATCH(0,H12:H26,0)-1,0))/5*C24/12))),IF(IF(F23-C8*F8*C24/12>0,C8*F8*C24/12,F23-1)>0,IF(F23-C8*F8*C24/12>0,C8*F8*C24/12,F23-1),0))) ->  | F24: 0 | H24: =IF(C8*F8*0.9>F23-C8*0.05,0,1) -> 
A25: 1913 | B25: 14 | C25: =IF($C$3="",0,IF(DATEDIF(DATE(YEAR(C6),MONTH(C6),1),DATE(YEAR(C7),MONTH(C7)+1,1),"m")-SUM(C12:C24)>=12,12,DATEDIF(DATE(YEAR(C6),MONTH(C6),1),DATE(YEAR(C7),MONTH(C7)+1,1),"m")-SUM(C12:C24))) -> 0 | D25: =IF(F8="","",IF(F6="旧定額法",IF(C8*F8*0.9<=F24-C8*0.05,C8*F8*0.9*C25/12,IF(OFFSET(H25,-1,0)=1,(F24-C8*0.05)*C25/12,IF(F24-OFFSET(F12,MATCH(0,H12:H26,0)-1,0)/5<=0,F24-1,(OFFSET(F12,MATCH(0,H12:H26,0)-1,0))/5*C25/12))),IF(IF(F24-C8*F8*C25/12>0,C8*F8*C25/12,F24-1)>0,IF(F24-C8*F8*C25/12>0,C8*F8*C25/12,F24-1),0))) ->  | F25: 0 | H25: =IF(C8*F8*0.9>F24-C8*0.05,0,1) -> 
A26: 1914 | B26: 15 | C26: =IF($C$3="",0,IF(DATEDIF(DATE(YEAR(C6),MONTH(C6),1),DATE(YEAR(C7),MONTH(C7)+1,1),"m")-SUM(C12:C25)>=12,12,DATEDIF(DATE(YEAR(C6),MONTH(C6),1),DATE(YEAR(C7),MONTH(C7)+1,1),"m")-SUM(C12:C25))) -> 0 | D26: =IF(F8="","",IF(F6="旧定額法",IF(C8*F8*0.9<=F25-C8*0.05,C8*F8*0.9*C26/12,IF(OFFSET(H26,-1,0)=1,(F25-C8*0.05)*C26/12,IF(F25-OFFSET(F12,MATCH(0,H12:H26,0)-1,0)/5<=0,F25-1,(OFFSET(F12,MATCH(0,H12:H26,0)-1,0))/5*C26/12))),IF(IF(F25-C8*F8*C26/12>0,C8*F8*C26/12,F25-1)>0,IF(F25-C8*F8*C26/12>0,C8*F8*C26/12,F25-1),0))) ->  | F26: 0 | G26: ① | H26: =IF(C8*F8*0.9>F25-C8*0.05,0,1) -> 
A28: 財産名②：
B29: 登録日： | E29: 償却方法： | F29: =IF(C29<=DATE(2007,3,31),"旧定額法","定額法") -> 旧定額法
B30: 処分時期： | E30: 耐用年数：
B31: 財産取得価格(税抜)： | E31: 償却率： | F31: =IF(F30="","",IF(C29<=DATE(2007,3,31),VLOOKUP(F30,'（削除禁止）償却率'!A:J,2,FALSE),VLOOKUP(F30,'（削除禁止）償却率'!A:J,3,FALSE))) -> 
A34: 西暦 | C34: か月 | E34: 償却額 （端数処理後） | F34: 期末帳簿価格
A35: =IF(C3=12,YEAR(C29),IF(C3<MONTH(C29),YEAR(C29),YEAR(C29)-1)) -> 1900 | B35: 1 | C35: =IF($C$3="",0,IF($C$3=12,12-MONTH(C29)+1,IF($C$3<MONTH(C29),$C$3-MONTH(C29)+12+1,$C$3-MONTH(C29)+1))) -> 0 | D35: =IF(F31="","",IF(F29="旧定額法",C31*F31*0.9*C35/12,C31*F31*C35/12)) ->  | F35: =C31-E35 -> 0 | H35: =IF(C31*F31*0.9>C31-C31*0.05,0,1) -> 
A36: =A35+1 -> 1901 | B36: 2 | C36: =IF($C$3="",0,IF(DATEDIF(DATE(YEAR(C29),MONTH(C29),1),DATE(YEAR(C30),MONTH(C30)+1,1),"m")-SUM(C35:C35)>=12,12,DATEDIF(DATE(YEAR(C29),MONTH(C29),1),DATE(YEAR(C30),MONTH(C30)+1,1),"m")-SUM(C35:C35))) -> 0 | D36: =IF(F31="","",IF(F29="旧定額法",IF(C31*F31*0.9<=F35-C31*0.05,C31*F31*0.9*C36/12,IF(OFFSET(H36,-1,0)=1,(F35-C31*0.05)*C36/12,IF(F35-OFFSET(F35,MATCH(0,H35:H49,0)-1,0)/5<=0,F35-1,(OFFSET(F35,MATCH(0,H35:H49,0)-1,0))/5*C36/12))),IF(IF(F35-C31*F31*C36/12>0,C31*F31*C36/12,F35-1)>0,IF(F35-C31*F31*C36/12>0,C31*F31*C36/12,F35-1),0))) ->  | F36: =F35-E36 -> 0 | H36: =IF(C31*F31*0.9>F35-C31*0.05,0,1) -> 
A37: 1902 | B37: 3 | C37: =IF($C$3="",0,IF(DATEDIF(DATE(YEAR(C29),MONTH(C29),1),DATE(YEAR(C30),MONTH(C30)+1,1),"m")-SUM(C35:C36)>=12,12,DATEDIF(DATE(YEAR(C29),MONTH(C29),1),DATE(YEAR(C30),MONTH(C30)+1,1),"m")-SUM(C35:C36))) -> 0 | D37: =IF(F31="","",IF(F29="旧定額法",IF(C31*F31*0.9<=F36-C31*0.05,C31*F31*0.9*C37/12,IF(OFFSET(H37,-1,0)=1,(F36-C31*0.05)*C37/12,IF(F36-OFFSET(F35,MATCH(0,H35:H49,0)-1,0)/5<=0,F36-1,(OFFSET(F35,MATCH(0,H35:H49,0)-1,0))/5*C37/12))),IF(IF(F36-C31*F31*C37/12>0,C31*F31*C37/12,F36-1)>0,IF(F36-C31*F31*C37/12>0,C31*F31*C37/12,F36-1),0))) ->  | F37: =F36-E37 -> 0 | H37: =IF(C31*F31*0.9>F36-C31*0.05,0,1) -> 
A38: 1903 | B38: 4 | C38: =IF($C$3="",0,IF(DATEDIF(DATE(YEAR(C29),MONTH(C29),1),DATE(YEAR(C30),MONTH(C30)+1,1),"m")-SUM(C35:C37)>=12,12,DATEDIF(DATE(YEAR(C29),MONTH(C29),1),DATE(YEAR(C30),MONTH(C30)+1,1),"m")-SUM(C35:C37))) -> 0 | D38: =IF(F31="","",IF(F29="旧定額法",IF(C31*F31*0.9<=F37-C31*0.05,C31*F31*0.9*C38/12,IF(OFFSET(H38,-1,0)=1,(F37-C31*0.05)*C38/12,IF(F37-OFFSET(F35,MATCH(0,H35:H49,0)-1,0)/5<=0,F37-1,(OFFSET(F35,MATCH(0,H35:H49,0)-1,0))/5*C38/12))),IF(IF(F37-C31*F31*C38/12>0,C31*F31*C38/12,F37-1)>0,IF(F37-C31*F31*C38/12>0,C31*F31*C38/12,F37-1),0))) ->  | F38: 0 | H38: =IF(C31*F31*0.9>F37-C31*0.05,0,1) -> 
A39: 1904 | B39: 5 | C39: =IF($C$3="",0,IF(DATEDIF(DATE(YEAR(C29),MONTH(C29),1),DATE(YEAR(C30),MONTH(C30)+1,1),"m")-SUM(C35:C38)>=12,12,DATEDIF(DATE(YEAR(C29),MONTH(C29),1),DATE(YEAR(C30),MONTH(C30)+1,1),"m")-SUM(C35:C38))) -> 0 | D39: =IF(F31="","",IF(F29="旧定額法",IF(C31*F31*0.9<=F38-C31*0.05,C31*F31*0.9*C39/12,IF(OFFSET(H39,-1,0)=1,(F38-C31*0.05)*C39/12,IF(F38-OFFSET(F35,MATCH(0,H35:H49,0)-1,0)/5<=0,F38-1,(OFFSET(F35,MATCH(0,H35:H49,0)-1,0))/5*C39/12))),IF(IF(F38-C31*F31*C39/12>0,C31*F31*C39/12,F38-1)>0,IF(F38-C31*F31*C39/12>0,C31*F31*C39/12,F38-1),0))) ->  | F39: 0 | H39: =IF(C31*F31*0.9>F38-C31*0.05,0,1) -> 
A40: 1905 | B40: 6 | C40: =IF($C$3="",0,IF(DATEDIF(DATE(YEAR(C29),MONTH(C29),1),DATE(YEAR(C30),MONTH(C30)+1,1),"m")-SUM(C35:C39)>=12,12,DATEDIF(DATE(YEAR(C29),MONTH(C29),1),DATE(YEAR(C30),MONTH(C30)+1,1),"m")-SUM(C35:C39))) -> 0 | D40: =IF(F31="","",IF(F29="旧定額法",IF(C31*F31*0.9<=F39-C31*0.05,C31*F31*0.9*C40/12,IF(OFFSET(H40,-1,0)=1,(F39-C31*0.05)*C40/12,IF(F39-OFFSET(F35,MATCH(0,H35:H49,0)-1,0)/5<=0,F39-1,(OFFSET(F35,MATCH(0,H35:H49,0)-1,0))/5*C40/12))),IF(IF(F39-C31*F31*C40/12>0,C31*F31*C40/12,F39-1)>0,IF(F39-C31*F31*C40/12>0,C31*F31*C40/12,F39-1),0))) ->  | F40: 0 | H40: =IF(C31*F31*0.9>F39-C31*0.05,0,1) -> 
A41: 1906 | B41: 7 | C41: =IF($C$3="",0,IF(DATEDIF(DATE(YEAR(C29),MONTH(C29),1),DATE(YEAR(C30),MONTH(C30)+1,1),"m")-SUM(C35:C40)>=12,12,DATEDIF(DATE(YEAR(C29),MONTH(C29),1),DATE(YEAR(C30),MONTH(C30)+1,1),"m")-SUM(C35:C40))) -> 0 | D41: =IF(F31="","",IF(F29="旧定額法",IF(C31*F31*0.9<=F40-C31*0.05,C31*F31*0.9*C41/12,IF(OFFSET(H41,-1,0)=1,(F40-C31*0.05)*C41/12,IF(F40-OFFSET(F35,MATCH(0,H35:H49,0)-1,0)/5<=0,F40-1,(OFFSET(F35,MATCH(0,H35:H49,0)-1,0))/5*C41/12))),IF(IF(F40-C31*F31*C41/12>0,C31*F31*C41/12,F40-1)>0,IF(F40-C31*F31*C41/12>0,C31*F31*C41/12,F40-1),0))) ->  | F41: 0 | H41: =IF(C31*F31*0.9>F40-C31*0.05,0,1) -> 
A42: 1907 | B42: 8 | C42: =IF($C$3="",0,IF(DATEDIF(DATE(YEAR(C29),MONTH(C29),1),DATE(YEAR(C30),MONTH(C30)+1,1),"m")-SUM(C35:C41)>=12,12,DATEDIF(DATE(YEAR(C29),MONTH(C29),1),DATE(YEAR(C30),MONTH(C30)+1,1),"m")-SUM(C35:C41))) -> 0 | D42: =IF(F31="","",IF(F29="旧定額法",IF(C31*F31*0.9<=F41-C31*0.05,C31*F31*0.9*C42/12,IF(OFFSET(H42,-1,0)=1,(F41-C31*0.05)*C42/12,IF(F41-OFFSET(F35,MATCH(0,H35:H49,0)-1,0)/5<=0,F41-1,(OFFSET(F35,MATCH(0,H35:H49,0)-1,0))/5*C42/12))),IF(IF(F41-C31*F31*C42/12>0,C31*F31*C42/12,F41-1)>0,IF(F41-C31*F31*C42/12>0,C31*F31*C42/12,F41-1),0))) ->  | F42: 0 | H42: =IF(C31*F31*0.9>F41-C31*0.05,0,1) -> 
A43: 1908 | B43: 9 | C43: =IF($C$3="",0,IF(DATEDIF(DATE(YEAR(C29),MONTH(C29),1),DATE(YEAR(C30),MONTH(C30)+1,1),"m")-SUM(C35:C42)>=12,12,DATEDIF(DATE(YEAR(C29),MONTH(C29),1),DATE(YEAR(C30),MONTH(C30)+1,1),"m")-SUM(C35:C42))) -> 0 | D43: =IF(F31="","",IF(F29="旧定額法",IF(C31*F31*0.9<=F42-C31*0.05,C31*F31*0.9*C43/12,IF(OFFSET(H43,-1,0)=1,(F42-C31*0.05)*C43/12,IF(F42-OFFSET(F35,MATCH(0,H35:H49,0)-1,0)/5<=0,F42-1,(OFFSET(F35,MATCH(0,H35:H49,0)-1,0))/5*C43/12))),IF(IF(F42-C31*F31*C43/12>0,C31*F31*C43/12,F42-1)>0,IF(F42-C31*F31*C43/12>0,C31*F31*C43/12,F42-1),0))) ->  | F43: 0 | H43: =IF(C31*F31*0.9>F42-C31*0.05,0,1) -> 
A44: 1909 | B44: 10 | C44: =IF($C$3="",0,IF(DATEDIF(DATE(YEAR(C29),MONTH(C29),1),DATE(YEAR(C30),MONTH(C30)+1,1),"m")-SUM(C35:C43)>=12,12,DATEDIF(DATE(YEAR(C29),MONTH(C29),1),DATE(YEAR(C30),MONTH(C30)+1,1),"m")-SUM(C35:C43))) -> 0 | D44: =IF(F31="","",IF(F29="旧定額法",IF(C31*F31*0.9<=F43-C31*0.05,C31*F31*0.9*C44/12,IF(OFFSET(H44,-1,0)=1,(F43-C31*0.05)*C44/12,IF(F43-OFFSET(F35,MATCH(0,H35:H49,0)-1,0)/5<=0,F43-1,(OFFSET(F35,MATCH(0,H35:H49,0)-1,0))/5*C44/12))),IF(IF(F43-C31*F31*C44/12>0,C31*F31*C44/12,F43-1)>0,IF(F43-C31*F31*C44/12>0,C31*F31*C44/12,F43-1),0))) ->  | F44: 0 | H44: =IF(C31*F31*0.9>F43-C31*0.05,0,1) -> 
A45: 1910 | B45: 11 | C45: =IF($C$3="",0,IF(DATEDIF(DATE(YEAR(C29),MONTH(C29),1),DATE(YEAR(C30),MONTH(C30)+1,1),"m")-SUM(C35:C44)>=12,12,DATEDIF(DATE(YEAR(C29),MONTH(C29),1),DATE(YEAR(C30),MONTH(C30)+1,1),"m")-SUM(C35:C44))) -> 0 | D45: =IF(F31="","",IF(F29="旧定額法",IF(C31*F31*0.9<=F44-C31*0.05,C31*F31*0.9*C45/12,IF(OFFSET(H45,-1,0)=1,(F44-C31*0.05)*C45/12,IF(F44-OFFSET(F35,MATCH(0,H35:H49,0)-1,0)/5<=0,F44-1,(OFFSET(F35,MATCH(0,H35:H49,0)-1,0))/5*C45/12))),IF(IF(F44-C31*F31*C45/12>0,C31*F31*C45/12,F44-1)>0,IF(F44-C31*F31*C45/12>0,C31*F31*C45/12,F44-1),0))) ->  | F45: 0 | H45: =IF(C31*F31*0.9>F44-C31*0.05,0,1) -> 
A46: 1911 | B46: 12 | C46: =IF($C$3="",0,IF(DATEDIF(DATE(YEAR(C29),MONTH(C29),1),DATE(YEAR(C30),MONTH(C30)+1,1),"m")-SUM(C35:C45)>=12,12,DATEDIF(DATE(YEAR(C29),MONTH(C29),1),DATE(YEAR(C30),MONTH(C30)+1,1),"m")-SUM(C35:C45))) -> 0 | D46: =IF(F31="","",IF(F29="旧定額法",IF(C31*F31*0.9<=F45-C31*0.05,C31*F31*0.9*C46/12,IF(OFFSET(H46,-1,0)=1,(F45-C31*0.05)*C46/12,IF(F45-OFFSET(F35,MATCH(0,H35:H49,0)-1,0)/5<=0,F45-1,(OFFSET(F35,MATCH(0,H35:H49,0)-1,0))/5*C46/12))),IF(IF(F45-C31*F31*C46/12>0,C31*F31*C46/12,F45-1)>0,IF(F45-C31*F31*C46/12>0,C31*F31*C46/12,F45-1),0))) ->  | F46: 0 | H46: =IF(C31*F31*0.9>F45-C31*0.05,0,1) -> 
A47: 1912 | B47: 13 | C47: =IF($C$3="",0,IF(DATEDIF(DATE(YEAR(C29),MONTH(C29),1),DATE(YEAR(C30),MONTH(C30)+1,1),"m")-SUM(C35:C46)>=12,12,DATEDIF(DATE(YEAR(C29),MONTH(C29),1),DATE(YEAR(C30),MONTH(C30)+1,1),"m")-SUM(C35:C46))) -> 0 | D47: =IF(F31="","",IF(F29="旧定額法",IF(C31*F31*0.9<=F46-C31*0.05,C31*F31*0.9*C47/12,IF(OFFSET(H47,-1,0)=1,(F46-C31*0.05)*C47/12,IF(F46-OFFSET(F35,MATCH(0,H35:H49,0)-1,0)/5<=0,F46-1,(OFFSET(F35,MATCH(0,H35:H49,0)-1,0))/5*C47/12))),IF(IF(F46-C31*F31*C47/12>0,C31*F31*C47/12,F46-1)>0,IF(F46-C31*F31*C47/12>0,C31*F31*C47/12,F46-1),0))) ->  | F47: 0 | H47: =IF(C31*F31*0.9>F46-C31*0.05,0,1) -> 
A48: 1913 | B48: 14 | C48: =IF($C$3="",0,IF(DATEDIF(DATE(YEAR(C29),MONTH(C29),1),DATE(YEAR(C30),MONTH(C30)+1,1),"m")-SUM(C35:C47)>=12,12,DATEDIF(DATE(YEAR(C29),MONTH(C29),1),DATE(YEAR(C30),MONTH(C30)+1,1),"m")-SUM(C35:C47))) -> 0 | D48: =IF(F31="","",IF(F29="旧定額法",IF(C31*F31*0.9<=F47-C31*0.05,C31*F31*0.9*C48/12,IF(OFFSET(H48,-1,0)=1,(F47-C31*0.05)*C48/12,IF(F47-OFFSET(F35,MATCH(0,H35:H49,0)-1,0)/5<=0,F47-1,(OFFSET(F35,MATCH(0,H35:H49,0)-1,0))/5*C48/12))),IF(IF(F47-C31*F31*C48/12>0,C31*F31*C48/12,F47-1)>0,IF(F47-C31*F31*C48/12>0,C31*F31*C48/12,F47-1),0))) ->  | F48: 0 | H48: =IF(C31*F31*0.9>F47-C31*0.05,0,1) -> 
A49: 1914 | B49: 15 | C49: =IF($C$3="",0,IF(DATEDIF(DATE(YEAR(C29),MONTH(C29),1),DATE(YEAR(C30),MONTH(C30)+1,1),"m")-SUM(C35:C48)>=12,12,DATEDIF(DATE(YEAR(C29),MONTH(C29),1),DATE(YEAR(C30),MONTH(C30)+1,1),"m")-SUM(C35:C48))) -> 0 | D49: =IF(F31="","",IF(F29="旧定額法",IF(C31*F31*0.9<=F48-C31*0.05,C31*F31*0.9*C49/12,IF(OFFSET(H49,-1,0)=1,(F48-C31*0.05)*C49/12,IF(F48-OFFSET(F35,MATCH(0,H35:H49,0)-1,0)/5<=0,F48-1,(OFFSET(F35,MATCH(0,H35:H49,0)-1,0))/5*C49/12))),IF(IF(F48-C31*F31*C49/12>0,C31*F31*C49/12,F48-1)>0,IF(F48-C31*F31*C49/12>0,C31*F31*C49/12,F48-1),0))) ->  | F49: 0 | G49: ② | H49: =IF(C31*F31*0.9>F48-C31*0.05,0,1) -> 
A51: ２．補助割合
A52: 各年度の年度末中間検査、確定検査の経費発生調書に記載されている数字の転記(補助金の額が確定している場合)
A54: 補助期間 （年度） | B54: 補助対象費用欄【e】の補助金額 | C54: 補助対象費用欄【e】のⅣ-2学術機関等共同研究費 | D54: 当年度発生額合計欄【b】の総計B | E54: 当年度発生学合計欄【b】のⅣ-2学術機関等共同研究費
A58: 合計額 | B58: =SUM(B55:B57) -> 0 | C58: =SUM(C55:C57) -> 0 | D58: =SUM(D55:D57) -> 0 | E58: =SUM(E55:E57) -> 0
A61: ３．補助相当額
B62: 残存簿価相当額（合計） | C62: =F26+F49 -> 0
B63: 補助割合 | C63: =(B58-C58)/(D58-E58) -> 
B65: 補助金相当額 | C65: =ROUNDDOWN(C62*C63,0) -> 

Sheet (記載例)定率法
A2: 【残存簿価相当額・補助金相当額計算書】
B3: 決 算 月： | C3: 3 | E3: 償却額の端数処理： | F3: 切り捨て
A4: １．残存簿価相当額計算
A5: 財産名①： | B5: AAAAAAAAA
B6: 登録日： | C6: 2006-03-15 | E6: 償却方法： | F6: =IF(C6<=DATE(2007,3,31),"旧定率法","定率法") -> 旧定率法
B7: 処分時期： | C7: 2017-08-31 | E7: 耐用年数： | F7: 8
B8: 財産取得価格(税抜)： | C8: 14429684 | E8: 償却率： | F8: =IF($F$7="","",IF(C6<=DATE(2007,3,31),VLOOKUP(F7,'（削除禁止）償却率'!A:J,4,FALSE),IF(C6>=DATE(2012,4,1),VLOOKUP(F7,'（削除禁止）償却率'!A:J,8,FALSE),VLOOKUP(F7,'（削除禁止）償却率'!A:J,5,FALSE)))) -> 0.25
B9: 保証率： | C9: =IF(C6<=DATE(2007,3,31),"",IF(C6>=DATE(2012,4,1),VLOOKUP(F7,'（削除禁止）償却率'!A:J,10,FALSE),VLOOKUP(F7,'（削除禁止）償却率'!A:J,7,FALSE))) ->  | E9: 償却保証額： | F9: =IF(C9="","",C8*C9) -> 
E10: 改定償却率： | F10: =IF(C6<=DATE(2007,3,31),"",IF(C6>=DATE(2012,4,1),VLOOKUP(F7,'（削除禁止）償却率'!A:J,9,FALSE),VLOOKUP(F7,'（削除禁止）償却率'!A:J,6,FALSE))) -> 
A11: 西暦 | C11: か月 | E11: 償却額 （端数処理後） | F11: 期末帳簿価格
A12: =IF(C3=12,YEAR(C6),IF(C3<MONTH(C6),YEAR(C6),YEAR(C6)-1)) -> 2005 | B12: 1 | C12: =IF($C$3="",0,IF($C$3=12,12-MONTH(C6)+1,IF($C$3<MONTH(C6),12+$C$3-MONTH(C6)+1,$C$3-MONTH(C6)+1))) -> 1 | D12: =IF(F8="","",IF(F6="旧定率法",C8*F8*C12/12,IF(C8*F8>F9,C8*F8*C12/12,C8*F10*C12/12))) -> 300618.4167 | E12: 300618 | F12: =C8-E12 -> 14129066 | H12: =IF(F9="",IF(SUM(E12:E12)+(C8*F8)<=C8*0.95,1,0),1) -> 1 | I12: =IF(C8*F8>F9,1,0) -> 0
A13: =A12+1 -> 2006 | B13: 2 | C13: =IF($C$3="",0,IF(DATEDIF(DATE(YEAR(C6),MONTH(C6),1),DATE(YEAR(C7),MONTH(C7)+1,1),"m")-SUM(C12:C12)>=12,12,DATEDIF(DATE(YEAR(C6),MONTH(C6),1),DATE(YEAR(C7),MONTH(C7)+1,1),"m")-SUM(C12:C12))) -> 12 | D13: =IF(F8="","",IF(F6="旧定率法",IF(F12*F8<=F12-C8*0.05,F12*F8*C13/12,IF(OFFSET(H13,-1,0)=1,(F12-C8*0.05)*C13/12,IF(F12-OFFSET(F12,MATCH(0,H12:H26,0)-1,0)/5<=0,F12-1,OFFSET(F12,MATCH(0,H12:H26,0)-1,0)/5*C13/12))),IF(F12*F8>F9,F12*F8*C13/12,IF(OFFSET(F12,MATCH(0,I12:I26,0)-2,0)-OFFSET(F12,MATCH(0,I12:I26,0)-2,0)*F10>0,OFFSET(F12,MATCH(0,I12:I26,0)-2,0)*F10*C13/12,IF(OFFSET(I13,-1,0)=1,OFFSET(F12,MATCH(0,I12:I26,0)-2,0)-1,0))))) -> 3532266.5 | E13: 3532266 | F13: =F12-E13 -> 10596800 | H13: =IF(F9="",IF(SUM(E12:E12)+(F12*F8)<=C8*0.95,1,0),1) -> 1 | I13: =IF(F12*F8>F9,1,0) -> 0
A14: 2007 | B14: 3 | C14: =IF($C$3="",0,IF(DATEDIF(DATE(YEAR(C6),MONTH(C6),1),DATE(YEAR(C7),MONTH(C7)+1,1),"m")-SUM(C12:C13)>=12,12,DATEDIF(DATE(YEAR(C6),MONTH(C6),1),DATE(YEAR(C7),MONTH(C7)+1,1),"m")-SUM(C12:C13))) -> 12 | D14: =IF(F8="","",IF(F6="旧定率法",IF(F13*F8<=F13-C8*0.05,F13*F8*C14/12,IF(OFFSET(H14,-1,0)=1,(F13-C8*0.05)*C14/12,IF(F13-OFFSET(F12,MATCH(0,H12:H26,0)-1,0)/5<=0,F13-1,OFFSET(F12,MATCH(0,H12:H26,0)-1,0)/5*C14/12))),IF(F13*F8>F9,F13*F8*C14/12,IF(OFFSET(F12,MATCH(0,I12:I26,0)-2,0)-OFFSET(F12,MATCH(0,I12:I26,0)-2,0)*F10>0,OFFSET(F12,MATCH(0,I12:I26,0)-2,0)*F10*C14/12,IF(OFFSET(I14,-1,0)=1,OFFSET(F12,MATCH(0,I12:I26,0)-2,0)-1,0))))) -> 2649200 | E14: 2649200 | F14: =F13-E14 -> 7947600 | H14: =IF(F9="",IF(SUM(E12:E13)+(F13*F8)<=C8*0.95,1,0),1) -> 1 | I14: =IF(F13*F8>F9,1,0) -> 0
A15: 2008 | B15: 4 | C15: =IF($C$3="",0,IF(DATEDIF(DATE(YEAR(C6),MONTH(C6),1),DATE(YEAR(C7),MONTH(C7)+1,1),"m")-SUM(C12:C14)>=12,12,DATEDIF(DATE(YEAR(C6),MONTH(C6),1),DATE(YEAR(C7),MONTH(C7)+1,1),"m")-SUM(C12:C14))) -> 12 | D15: =IF(F8="","",IF(F6="旧定率法",IF(F14*F8<=F14-C8*0.05,F14*F8*C15/12,IF(OFFSET(H15,-1,0)=1,(F14-C8*0.05)*C15/12,IF(F14-OFFSET(F12,MATCH(0,H12:H26,0)-1,0)/5<=0,F14-1,OFFSET(F12,MATCH(0,H12:H26,0)-1,0)/5*C15/12))),IF(F14*F8>F9,F14*F8*C15/12,IF(OFFSET(F12,MATCH(0,I12:I26,0)-2,0)-OFFSET(F12,MATCH(0,I12:I26,0)-2,0)*F10>0,OFFSET(F12,MATCH(0,I12:I26,0)-2,0)*F10*C15/12,IF(OFFSET(I15,-1,0)=1,OFFSET(F12,MATCH(0,I12:I26,0)-2,0)-1,0))))) -> 1986900 | E15: 1986900 | F15: 5960700 | H15: =IF(F9="",IF(SUM(E12:E14)+(F14*F8)<=C8*0.95,1,0),1) -> 1 | I15: =IF(F14*F8>F9,1,0) -> 0
A16: 2009 | B16: 5 | C16: =IF($C$3="",0,IF(DATEDIF(DATE(YEAR(C6),MONTH(C6),1),DATE(YEAR(C7),MONTH(C7)+1,1),"m")-SUM(C12:C15)>=12,12,DATEDIF(DATE(YEAR(C6),MONTH(C6),1),DATE(YEAR(C7),MONTH(C7)+1,1),"m")-SUM(C12:C15))) -> 12 | D16: =IF(F8="","",IF(F6="旧定率法",IF(F15*F8<=F15-C8*0.05,F15*F8*C16/12,IF(OFFSET(H16,-1,0)=1,(F15-C8*0.05)*C16/12,IF(F15-OFFSET(F12,MATCH(0,H12:H26,0)-1,0)/5<=0,F15-1,OFFSET(F12,MATCH(0,H12:H26,0)-1,0)/5*C16/12))),IF(F15*F8>F9,F15*F8*C16/12,IF(OFFSET(F12,MATCH(0,I12:I26,0)-2,0)-OFFSET(F12,MATCH(0,I12:I26,0)-2,0)*F10>0,OFFSET(F12,MATCH(0,I12:I26,0)-2,0)*F10*C16/12,IF(OFFSET(I16,-1,0)=1,OFFSET(F12,MATCH(0,I12:I26,0)-2,0)-1,0))))) -> 1490175 | E16: 1490175 | F16: 4470525 | H16: =IF(F9="",IF(SUM(E12:E15)+(F15*F8)<=C8*0.95,1,0),1) -> 1 | I16: =IF(F15*F8>F9,1,0) -> 0
A17: 2010 | B17: 6 | C17: =IF($C$3="",0,IF(DATEDIF(DATE(YEAR(C6),MONTH(C6),1),DATE(YEAR(C7),MONTH(C7)+1,1),"m")-SUM(C12:C16)>=12,12,DATEDIF(DATE(YEAR(C6),MONTH(C6),1),DATE(YEAR(C7),MONTH(C7)+1,1),"m")-SUM(C12:C16))) -> 12 | D17: =IF(F8="","",IF(F6="旧定率法",IF(F16*F8<=F16-C8*0.05,F16*F8*C17/12,IF(OFFSET(H17,-1,0)=1,(F16-C8*0.05)*C17/12,IF(F16-OFFSET(F12,MATCH(0,H12:H26,0)-1,0)/5<=0,F16-1,OFFSET(F12,MATCH(0,H12:H26,0)-1,0)/5*C17/12))),IF(F16*F8>F9,F16*F8*C17/12,IF(OFFSET(F12,MATCH(0,I12:I26,0)-2,0)-OFFSET(F12,MATCH(0,I12:I26,0)-2,0)*F10>0,OFFSET(F12,MATCH(0,I12:I26,0)-2,0)*F10*C17/12,IF(OFFSET(I17,-1,0)=1,OFFSET(F12,MATCH(0,I12:I26,0)-2,0)-1,0))))) -> 1117631.25 | E17: 1117631 | F17: 3352894 | H17: =IF(F9="",IF(SUM(E12:E16)+(F16*F8)<=C8*0.95,1,0),1) -> 1 | I17: =IF(F16*F8>F9,1,0) -> 0
A18: 2011 | B18: 7 | C18: =IF($C$3="",0,IF(DATEDIF(DATE(YEAR(C6),MONTH(C6),1),DATE(YEAR(C7),MONTH(C7)+1,1),"m")-SUM(C12:C17)>=12,12,DATEDIF(DATE(YEAR(C6),MONTH(C6),1),DATE(YEAR(C7),MONTH(C7)+1,1),"m")-SUM(C12:C17))) -> 12 | D18: =IF(F8="","",IF(F6="旧定率法",IF(F17*F8<=F17-C8*0.05,F17*F8*C18/12,IF(OFFSET(H18,-1,0)=1,(F17-C8*0.05)*C18/12,IF(F17-OFFSET(F12,MATCH(0,H12:H26,0)-1,0)/5<=0,F17-1,OFFSET(F12,MATCH(0,H12:H26,0)-1,0)/5*C18/12))),IF(F17*F8>F9,F17*F8*C18/12,IF(OFFSET(F12,MATCH(0,I12:I26,0)-2,0)-OFFSET(F12,MATCH(0,I12:I26,0)-2,0)*F10>0,OFFSET(F12,MATCH(0,I12:I26,0)-2,0)*F10*C18/12,IF(OFFSET(I18,-1,0)=1,OFFSET(F12,MATCH(0,I12:I26,0)-2,0)-1,0))))) -> 838223.5 | E18: 838223 | F18: 2514671 | H18: =IF(F9="",IF(SUM(E12:E17)+(F17*F8)<=C8*0.95,1,0),1) -> 1 | I18: =IF(F17*F8>F9,1,0) -> 0
A19: 2012 | B19: 8 | C19: =IF($C$3="",0,IF(DATEDIF(DATE(YEAR(C6),MONTH(C6),1),DATE(YEAR(C7),MONTH(C7)+1,1),"m")-SUM(C12:C18)>=12,12,DATEDIF(DATE(YEAR(C6),MONTH(C6),1),DATE(YEAR(C7),MONTH(C7)+1,1),"m")-SUM(C12:C18))) -> 12 | D19: =IF(F8="","",IF(F6="旧定率法",IF(F18*F8<=F18-C8*0.05,F18*F8*C19/12,IF(OFFSET(H19,-1,0)=1,(F18-C8*0.05)*C19/12,IF(F18-OFFSET(F12,MATCH(0,H12:H26,0)-1,0)/5<=0,F18-1,OFFSET(F12,MATCH(0,H12:H26,0)-1,0)/5*C19/12))),IF(F18*F8>F9,F18*F8*C19/12,IF(OFFSET(F12,MATCH(0,I12:I26,0)-2,0)-OFFSET(F12,MATCH(0,I12:I26,0)-2,0)*F10>0,OFFSET(F12,MATCH(0,I12:I26,0)-2,0)*F10*C19/12,IF(OFFSET(I19,-1,0)=1,OFFSET(F12,MATCH(0,I12:I26,0)-2,0)-1,0))))) -> 628667.75 | E19: 628667 | F19: 1886004 | H19: =IF(F9="",IF(SUM(E12:E18)+(F18*F8)<=C8*0.95,1,0),1) -> 1 | I19: =IF(F18*F8>F9,1,0) -> 0
A20: 2013 | B20: 9 | C20: =IF($C$3="",0,IF(DATEDIF(DATE(YEAR(C6),MONTH(C6),1),DATE(YEAR(C7),MONTH(C7)+1,1),"m")-SUM(C12:C19)>=12,12,DATEDIF(DATE(YEAR(C6),MONTH(C6),1),DATE(YEAR(C7),MONTH(C7)+1,1),"m")-SUM(C12:C19))) -> 12 | D20: =IF(F8="","",IF(F6="旧定率法",IF(F19*F8<=F19-C8*0.05,F19*F8*C20/12,IF(OFFSET(H20,-1,0)=1,(F19-C8*0.05)*C20/12,IF(F19-OFFSET(F12,MATCH(0,H12:H26,0)-1,0)/5<=0,F19-1,OFFSET(F12,MATCH(0,H12:H26,0)-1,0)/5*C20/12))),IF(F19*F8>F9,F19*F8*C20/12,IF(OFFSET(F12,MATCH(0,I12:I26,0)-2,0)-OFFSET(F12,MATCH(0,I12:I26,0)-2,0)*F10>0,OFFSET(F12,MATCH(0,I12:I26,0)-2,0)*F10*C20/12,IF(OFFSET(I20,-1,0)=1,OFFSET(F12,MATCH(0,I12:I26,0)-2,0)-1,0))))) -> 471501 | E20: 471501 | F20: 1414503 | H20: =IF(F9="",IF(SUM(E12:E19)+(F19*F8)<=C8*0.95,1,0),1) -> 1 | I20: =IF(F19*F8>F9,1,0) -> 0
A21: =A20+1 -> 2014 | B21: 10 | C21: =IF($C$3="",0,IF(DATEDIF(DATE(YEAR(C6),MONTH(C6),1),DATE(YEAR(C7),MONTH(C7)+1,1),"m")-SUM(C12:C20)>=12,12,DATEDIF(DATE(YEAR(C6),MONTH(C6),1),DATE(YEAR(C7),MONTH(C7)+1,1),"m")-SUM(C12:C20))) -> 12 | D21: =IF(F8="","",IF(F6="旧定率法",IF(F20*F8<=F20-C8*0.05,F20*F8*C21/12,IF(OFFSET(H21,-1,0)=1,(F20-C8*0.05)*C21/12,IF(F20-OFFSET(F12,MATCH(0,H12:H26,0)-1,0)/5<=0,F20-1,OFFSET(F12,MATCH(0,H12:H26,0)-1,0)/5*C21/12))),IF(F20*F8>F9,F20*F8*C21/12,IF(OFFSET(F12,MATCH(0,I12:I26,0)-2,0)-OFFSET(F12,MATCH(0,I12:I26,0)-2,0)*F10>0,OFFSET(F12,MATCH(0,I12:I26,0)-2,0)*F10*C21/12,IF(OFFSET(I21,-1,0)=1,OFFSET(F12,MATCH(0,I12:I26,0)-2,0)-1,0))))) -> 353625.75 | E21: 353625 | F21: 1060878 | H21: =IF(F9="",IF(SUM(E12:E20)+(F20*F8)<=C8*0.95,1,0),1) -> 1 | I21: =IF(F20*F8>F9,1,0) -> 0
A22: =A21+1 -> 2015 | B22: 11 | C22: =IF($C$3="",0,IF(DATEDIF(DATE(YEAR(C6),MONTH(C6),1),DATE(YEAR(C7),MONTH(C7)+1,1),"m")-SUM(C12:C21)>=12,12,DATEDIF(DATE(YEAR(C6),MONTH(C6),1),DATE(YEAR(C7),MONTH(C7)+1,1),"m")-SUM(C12:C21))) -> 12 | D22: =IF(F8="","",IF(F6="旧定率法",IF(F21*F8<=F21-C8*0.05,F21*F8*C22/12,IF(OFFSET(H22,-1,0)=1,(F21-C8*0.05)*C22/12,IF(F21-OFFSET(F12,MATCH(0,H12:H26,0)-1,0)/5<=0,F21-1,OFFSET(F12,MATCH(0,H12:H26,0)-1,0)/5*C22/12))),IF(F21*F8>F9,F21*F8*C22/12,IF(OFFSET(F12,MATCH(0,I12:I26,0)-2,0)-OFFSET(F12,MATCH(0,I12:I26,0)-2,0)*F10>0,OFFSET(F12,MATCH(0,I12:I26,0)-2,0)*F10*C22/12,IF(OFFSET(I22,-1,0)=1,OFFSET(F12,MATCH(0,I12:I26,0)-2,0)-1,0))))) -> 265219.5 | E22: 265219 | F22: 795659 | H22: =IF(F9="",IF(SUM(E12:E21)+(F21*F8)<=C8*0.95,1,0),1) -> 1 | I22: =IF(F21*F8>F9,1,0) -> 0
A23: 2016 | B23: 12 | C23: =IF($C$3="",0,IF(DATEDIF(DATE(YEAR(C6),MONTH(C6),1),DATE(YEAR(C7),MONTH(C7)+1,1),"m")-SUM(C12:C22)>=12,12,DATEDIF(DATE(YEAR(C6),MONTH(C6),1),DATE(YEAR(C7),MONTH(C7)+1,1),"m")-SUM(C12:C22))) -> 12 | D23: =IF(F8="","",IF(F6="旧定率法",IF(F22*F8<=F22-C8*0.05,F22*F8*C23/12,IF(OFFSET(H23,-1,0)=1,(F22-C8*0.05)*C23/12,IF(F22-OFFSET(F12,MATCH(0,H12:H26,0)-1,0)/5<=0,F22-1,OFFSET(F12,MATCH(0,H12:H26,0)-1,0)/5*C23/12))),IF(F22*F8>F9,F22*F8*C23/12,IF(OFFSET(F12,MATCH(0,I12:I26,0)-2,0)-OFFSET(F12,MATCH(0,I12:I26,0)-2,0)*F10>0,OFFSET(F12,MATCH(0,I12:I26,0)-2,0)*F10*C23/12,IF(OFFSET(I23,-1,0)=1,OFFSET(F12,MATCH(0,I12:I26,0)-2,0)-1,0))))) -> 74174.8 | E23: 74174 | F23: 721485 | H23: =IF(F9="",IF(SUM(E12:E22)+(F22*F8)<=C8*0.95,1,0),1) -> 0 | I23: =IF(F22*F8>F9,1,0) -> 0
A24: 2017 | B24: 13 | C24: =IF($C$3="",0,IF(DATEDIF(DATE(YEAR(C6),MONTH(C6),1),DATE(YEAR(C7),MONTH(C7)+1,1),"m")-SUM(C12:C23)>=12,12,DATEDIF(DATE(YEAR(C6),MONTH(C6),1),DATE(YEAR(C7),MONTH(C7)+1,1),"m")-SUM(C12:C23))) -> 5 | D24: =IF(F8="","",IF(F6="旧定率法",IF(F23*F8<=F23-C8*0.05,F23*F8*C24/12,IF(OFFSET(H24,-1,0)=1,(F23-C8*0.05)*C24/12,IF(F23-OFFSET(F12,MATCH(0,H12:H26,0)-1,0)/5<=0,F23-1,OFFSET(F12,MATCH(0,H12:H26,0)-1,0)/5*C24/12))),IF(F23*F8>F9,F23*F8*C24/12,IF(OFFSET(F12,MATCH(0,I12:I26,0)-2,0)-OFFSET(F12,MATCH(0,I12:I26,0)-2,0)*F10>0,OFFSET(F12,MATCH(0,I12:I26,0)-2,0)*F10*C24/12,IF(OFFSET(I24,-1,0)=1,OFFSET(F12,MATCH(0,I12:I26,0)-2,0)-1,0))))) -> 60123.75 | E24: 60123 | F24: 661362 | H24: =IF(F9="",IF(SUM(E12:E23)+(F23*F8)<=C8*0.95,1,0),1) -> 0 | I24: =IF(F23*F8>F9,1,0) -> 0
A25: 2018 | B25: 14 | C25: =IF($C$3="",0,IF(DATEDIF(DATE(YEAR(C6),MONTH(C6),1),DATE(YEAR(C7),MONTH(C7)+1,1),"m")-SUM(C12:C24)>=12,12,DATEDIF(DATE(YEAR(C6),MONTH(C6),1),DATE(YEAR(C7),MONTH(C7)+1,1),"m")-SUM(C12:C24))) -> 0 | D25: =IF(F8="","",IF(F6="旧定率法",IF(F24*F8<=F24-C8*0.05,F24*F8*C25/12,IF(OFFSET(H25,-1,0)=1,(F24-C8*0.05)*C25/12,IF(F24-OFFSET(F12,MATCH(0,H12:H26,0)-1,0)/5<=0,F24-1,OFFSET(F12,MATCH(0,H12:H26,0)-1,0)/5*C25/12))),IF(F24*F8>F9,F24*F8*C25/12,IF(OFFSET(F12,MATCH(0,I12:I26,0)-2,0)-OFFSET(F12,MATCH(0,I12:I26,0)-2,0)*F10>0,OFFSET(F12,MATCH(0,I12:I26,0)-2,0)*F10*C25/12,IF(OFFSET(I25,-1,0)=1,OFFSET(F12,MATCH(0,I12:I26,0)-2,0)-1,0))))) -> 0 | E25: 0 | F25: 661362 | H25: =IF(F9="",IF(SUM(E12:E24)+(F24*F8)<=C8*0.95,1,0),1) -> 0 | I25: =IF(F24*F8>F9,1,0) -> 0
A26: 2019 | B26: 15 | C26: =IF($C$3="",0,IF(DATEDIF(DATE(YEAR(C6),MONTH(C6),1),DATE(YEAR(C7),MONTH(C7)+1,1),"m")-SUM(C12:C25)>=12,12,DATEDIF(DATE(YEAR(C6),MONTH(C6),1),DATE(YEAR(C7),MONTH(C7)+1,1),"m")-SUM(C12:C25))) -> 0 | D26: =IF(F8="","",IF(F6="旧定率法",IF(F25*F8<=F25-C8*0.05,F25*F8*C26/12,IF(OFFSET(H26,-1,0)=1,(F25-C8*0.05)*C26/12,IF(F25-OFFSET(F12,MATCH(0,H12:H26,0)-1,0)/5<=0,F25-1,OFFSET(F12,MATCH(0,H12:H26,0)-1,0)/5*C26/12))),IF(F25*F8>F9,F25*F8*C26/12,IF(OFFSET(F12,MATCH(0,I12:I26,0)-2,0)-OFFSET(F12,MATCH(0,I12:I26,0)-2,0)*F10>0,OFFSET(F12,MATCH(0,I12:I26,0)-2,0)*F10*C26/12,IF(OFFSET(I26,-1,0)=1,OFFSET(F12,MATCH(0,I12:I26,0)-2,0)-1,0))))) -> 0 | E26: 0 | F26: 661362 | G26: ① | H26: =IF(F9="",IF(SUM(E12:E25)+(F25*F8)<=C8*0.95,1,0),1) -> 0 | I26: =IF(F25*F8>F9,1,0) -> 0
A28: 財産名②： | B28: BBBBBBBBBB
B29: 登録日： | C29: 2019-12-03 | E29: 償却方法： | F29: =IF(C29<=DATE(2007,3,31),"旧定率法","定率法") -> 定率法
B30: 処分時期： | C30: 2021-11-01 | E30: 耐用年数： | F30: 4
B31: 財産取得価格(税抜)： | C31: 10000000 | E31: 償却率： | F31: 0.5
B32: 保証率： | C32: 0.12499 | E32: 償却保証額： | F32: =C31*C32 -> 1249900
E33: 改定償却率： | F33: 1
A34: 西暦 | C34: か月 | E34: 償却額 （端数処理後） | F34: 期末帳簿価格
A35: =IF(C3=12,YEAR(C29),IF(C3<MONTH(C29),YEAR(C29),YEAR(C29)-1)) -> 2019 | B35: 1 | C35: =IF($C$3="",0,IF($C$3=12,12-MONTH(C29)+1,IF($C$3<MONTH(C29),$C$3-MONTH(C29)+12+1,$C$3-MONTH(C29)+1))) -> 4 | D35: =IF(F31="","",IF(F29="旧定率法",C31*F31*C35/12,IF(C31*F31>F32,C31*F31*C35/12,C31*F33*C35/12))) -> 1666666.667 | E35: 1666666 | F35: =C31-E35 -> 8333334 | H35: =IF(F32="",IF(SUM(E35:E35)+(C31*F31)<=C31*0.95,1,0),1) -> 1 | I35: =IF(C31*F31>F32,1,0) -> 1
A36: =A35+1 -> 2020 | B36: 2 | C36: =IF($C$3="",0,IF(DATEDIF(DATE(YEAR(C29),MONTH(C29),1),DATE(YEAR(C30),MONTH(C30)+1,1),"m")-SUM(C35:C35)>=12,12,DATEDIF(DATE(YEAR(C29),MONTH(C29),1),DATE(YEAR(C30),MONTH(C30)+1,1),"m")-SUM(C35:C35))) -> 12 | D36: =IF(F31="","",IF(F29="旧定率法",IF(F35*F31<=F35-C31*0.05,F35*F31*C36/12,IF(OFFSET(H36,-1,0)=1,(F35-C31*0.05)*C36/12,IF(F35-OFFSET(F35,MATCH(0,H35:H49,0)-1,0)/5<=0,F35-1,OFFSET(F35,MATCH(0,H35:H49,0)-1,0)/5*C36/12))),IF(F35*F31>F32,F35*F31*C36/12,IF(OFFSET(F35,MATCH(0,I35:I49,0)-2,0)-OFFSET(F35,MATCH(0,I35:I49,0)-2,0)*F33>0,OFFSET(F35,MATCH(0,I35:I49,0)-2,0)*F33*C36/12,IF(OFFSET(I36,-1,0)=1,OFFSET(F35,MATCH(0,I35:I49,0)-2,0)-1,0))))) -> 4166667 | E36: 4166667 | F36: =F35-E36 -> 4166667 | H36: =IF(F32="",IF(SUM(E35:E35)+(F35*F31)<=C31*0.95,1,0),1) -> 1 | I36: =IF(F35*F31>F32,1,0) -> 1
A37: 2021 | B37: 3 | C37: =IF($C$3="",0,IF(DATEDIF(DATE(YEAR(C29),MONTH(C29),1),DATE(YEAR(C30),MONTH(C30)+1,1),"m")-SUM(C35:C36)>=12,12,DATEDIF(DATE(YEAR(C29),MONTH(C29),1),DATE(YEAR(C30),MONTH(C30)+1,1),"m")-SUM(C35:C36))) -> 8 | D37: =IF(F31="","",IF(F29="旧定率法",IF(F36*F31<=F36-C31*0.05,F36*F31*C37/12,IF(OFFSET(H37,-1,0)=1,(F36-C31*0.05)*C37/12,IF(F36-OFFSET(F35,MATCH(0,H35:H49,0)-1,0)/5<=0,F36-1,OFFSET(F35,MATCH(0,H35:H49,0)-1,0)/5*C37/12))),IF(F36*F31>F32,F36*F31*C37/12,IF(OFFSET(F35,MATCH(0,I35:I49,0)-2,0)-OFFSET(F35,MATCH(0,I35:I49,0)-2,0)*F33>0,OFFSET(F35,MATCH(0,I35:I49,0)-2,0)*F33*C37/12,IF(OFFSET(I37,-1,0)=1,OFFSET(F35,MATCH(0,I35:I49,0)-2,0)-1,0))))) -> 1388889 | E37: 1388889 | F37: =F36-E37 -> 2777778 | H37: =IF(F32="",IF(SUM(E35:E36)+(F36*F31)<=C31*0.95,1,0),1) -> 1 | I37: =IF(F36*F31>F32,1,0) -> 1
A38: 2022 | B38: 4 | C38: =IF($C$3="",0,IF(DATEDIF(DATE(YEAR(C29),MONTH(C29),1),DATE(YEAR(C30),MONTH(C30)+1,1),"m")-SUM(C35:C37)>=12,12,DATEDIF(DATE(YEAR(C29),MONTH(C29),1),DATE(YEAR(C30),MONTH(C30)+1,1),"m")-SUM(C35:C37))) -> 0 | D38: =IF(F31="","",IF(F29="旧定率法",IF(F37*F31<=F37-C31*0.05,F37*F31*C38/12,IF(OFFSET(H38,-1,0)=1,(F37-C31*0.05)*C38/12,IF(F37-OFFSET(F35,MATCH(0,H35:H49,0)-1,0)/5<=0,F37-1,OFFSET(F35,MATCH(0,H35:H49,0)-1,0)/5*C38/12))),IF(F37*F31>F32,F37*F31*C38/12,IF(OFFSET(F35,MATCH(0,I35:I49,0)-2,0)-OFFSET(F35,MATCH(0,I35:I49,0)-2,0)*F33>0,OFFSET(F35,MATCH(0,I35:I49,0)-2,0)*F33*C38/12,IF(OFFSET(I38,-1,0)=1,OFFSET(F35,MATCH(0,I35:I49,0)-2,0)-1,0))))) -> 0 | E38: 0 | F38: 2777778 | H38: =IF(F32="",IF(SUM(E35:E37)+(F37*F31)<=C31*0.95,1,0),1) -> 1 | I38: =IF(F37*F31>F32,1,0) -> 1
A39: 2023 | B39: 5 | C39: =IF($C$3="",0,IF(DATEDIF(DATE(YEAR(C29),MONTH(C29),1),DATE(YEAR(C30),MONTH(C30)+1,1),"m")-SUM(C35:C38)>=12,12,DATEDIF(DATE(YEAR(C29),MONTH(C29),1),DATE(YEAR(C30),MONTH(C30)+1,1),"m")-SUM(C35:C38))) -> 0 | D39: =IF(F31="","",IF(F29="旧定率法",IF(F38*F31<=F38-C31*0.05,F38*F31*C39/12,IF(OFFSET(H39,-1,0)=1,(F38-C31*0.05)*C39/12,IF(F38-OFFSET(F35,MATCH(0,H35:H49,0)-1,0)/5<=0,F38-1,OFFSET(F35,MATCH(0,H35:H49,0)-1,0)/5*C39/12))),IF(F38*F31>F32,F38*F31*C39/12,IF(OFFSET(F35,MATCH(0,I35:I49,0)-2,0)-OFFSET(F35,MATCH(0,I35:I49,0)-2,0)*F33>0,OFFSET(F35,MATCH(0,I35:I49,0)-2,0)*F33*C39/12,IF(OFFSET(I39,-1,0)=1,OFFSET(F35,MATCH(0,I35:I49,0)-2,0)-1,0))))) -> 0 | E39: 0 | F39: 2777778 | H39: =IF(F32="",IF(SUM(E35:E38)+(F38*F31)<=C31*0.95,1,0),1) -> 1 | I39: =IF(F38*F31>F32,1,0) -> 1
A40: 2024 | B40: 6 | C40: =IF($C$3="",0,IF(DATEDIF(DATE(YEAR(C29),MONTH(C29),1),DATE(YEAR(C30),MONTH(C30)+1,1),"m")-SUM(C35:C39)>=12,12,DATEDIF(DATE(YEAR(C29),MONTH(C29),1),DATE(YEAR(C30),MONTH(C30)+1,1),"m")-SUM(C35:C39))) -> 0 | D40: =IF(F31="","",IF(F29="旧定率法",IF(F39*F31<=F39-C31*0.05,F39*F31*C40/12,IF(OFFSET(H40,-1,0)=1,(F39-C31*0.05)*C40/12,IF(F39-OFFSET(F35,MATCH(0,H35:H49,0)-1,0)/5<=0,F39-1,OFFSET(F35,MATCH(0,H35:H49,0)-1,0)/5*C40/12))),IF(F39*F31>F32,F39*F31*C40/12,IF(OFFSET(F35,MATCH(0,I35:I49,0)-2,0)-OFFSET(F35,MATCH(0,I35:I49,0)-2,0)*F33>0,OFFSET(F35,MATCH(0,I35:I49,0)-2,0)*F33*C40/12,IF(OFFSET(I40,-1,0)=1,OFFSET(F35,MATCH(0,I35:I49,0)-2,0)-1,0))))) -> 0 | E40: 0 | F40: 2777778 | H40: =IF(F32="",IF(SUM(E35:E39)+(F39*F31)<=C31*0.95,1,0),1) -> 1 | I40: =IF(F39*F31>F32,1,0) -> 1
A41: 2025 | B41: 7 | C41: =IF($C$3="",0,IF(DATEDIF(DATE(YEAR(C29),MONTH(C29),1),DATE(YEAR(C30),MONTH(C30)+1,1),"m")-SUM(C35:C40)>=12,12,DATEDIF(DATE(YEAR(C29),MONTH(C29),1),DATE(YEAR(C30),MONTH(C30)+1,1),"m")-SUM(C35:C40))) -> 0 | D41: =IF(F31="","",IF(F29="旧定率法",IF(F40*F31<=F40-C31*0.05,F40*F31*C41/12,IF(OFFSET(H41,-1,0)=1,(F40-C31*0.05)*C41/12,IF(F40-OFFSET(F35,MATCH(0,H35:H49,0)-1,0)/5<=0,F40-1,OFFSET(F35,MATCH(0,H35:H49,0)-1,0)/5*C41/12))),IF(F40*F31>F32,F40*F31*C41/12,IF(OFFSET(F35,MATCH(0,I35:I49,0)-2,0)-OFFSET(F35,MATCH(0,I35:I49,0)-2,0)*F33>0,OFFSET(F35,MATCH(0,I35:I49,0)-2,0)*F33*C41/12,IF(OFFSET(I41,-1,0)=1,OFFSET(F35,MATCH(0,I35:I49,0)-2,0)-1,0))))) -> 0 | E41: 0 | F41: 2777778 | H41: =IF(F32="",IF(SUM(E35:E40)+(F40*F31)<=C31*0.95,1,0),1) -> 1 | I41: =IF(F40*F31>F32,1,0) -> 1
A42: 2026 | B42: 8 | C42: =IF($C$3="",0,IF(DATEDIF(DATE(YEAR(C29),MONTH(C29),1),DATE(YEAR(C30),MONTH(C30)+1,1),"m")-SUM(C35:C41)>=12,12,DATEDIF(DATE(YEAR(C29),MONTH(C29),1),DATE(YEAR(C30),MONTH(C30)+1,1),"m")-SUM(C35:C41))) -> 0 | D42: =IF(F31="","",IF(F29="旧定率法",IF(F41*F31<=F41-C31*0.05,F41*F31*C42/12,IF(OFFSET(H42,-1,0)=1,(F41-C31*0.05)*C42/12,IF(F41-OFFSET(F35,MATCH(0,H35:H49,0)-1,0)/5<=0,F41-1,OFFSET(F35,MATCH(0,H35:H49,0)-1,0)/5*C42/12))),IF(F41*F31>F32,F41*F31*C42/12,IF(OFFSET(F35,MATCH(0,I35:I49,0)-2,0)-OFFSET(F35,MATCH(0,I35:I49,0)-2,0)*F33>0,OFFSET(F35,MATCH(0,I35:I49,0)-2,0)*F33*C42/12,IF(OFFSET(I42,-1,0)=1,OFFSET(F35,MATCH(0,I35:I49,0)-2,0)-1,0))))) -> 0 | E42: 0 | F42: 2777778 | H42: =IF(F32="",IF(SUM(E35:E41)+(F41*F31)<=C31*0.95,1,0),1) -> 1 | I42: =IF(F41*F31>F32,1,0) -> 1
A43: 2027 | B43: 9 | C43: =IF($C$3="",0,IF(DATEDIF(DATE(YEAR(C29),MONTH(C29),1),DATE(YEAR(C30),MONTH(C30)+1,1),"m")-SUM(C35:C42)>=12,12,DATEDIF(DATE(YEAR(C29),MONTH(C29),1),DATE(YEAR(C30),MONTH(C30)+1,1),"m")-SUM(C35:C42))) -> 0 | D43: =IF(F31="","",IF(F29="旧定率法",IF(F42*F31<=F42-C31*0.05,F42*F31*C43/12,IF(OFFSET(H43,-1,0)=1,(F42-C31*0.05)*C43/12,IF(F42-OFFSET(F35,MATCH(0,H35:H49,0)-1,0)/5<=0,F42-1,OFFSET(F35,MATCH(0,H35:H49,0)-1,0)/5*C43/12))),IF(F42*F31>F32,F42*F31*C43/12,IF(OFFSET(F35,MATCH(0,I35:I49,0)-2,0)-OFFSET(F35,MATCH(0,I35:I49,0)-2,0)*F33>0,OFFSET(F35,MATCH(0,I35:I49,0)-2,0)*F33*C43/12,IF(OFFSET(I43,-1,0)=1,OFFSET(F35,MATCH(0,I35:I49,0)-2,0)-1,0))))) -> 0 | E43: 0 | F43: 2777778 | H43: =IF(F32="",IF(SUM(E35:E42)+(F42*F31)<=C31*0.95,1,0),1) -> 1 | I43: =IF(F42*F31>F32,1,0) -> 1
A44: 2028 | B44: 10 | C44: =IF($C$3="",0,IF(DATEDIF(DATE(YEAR(C29),MONTH(C29),1),DATE(YEAR(C30),MONTH(C30)+1,1),"m")-SUM(C35:C43)>=12,12,DATEDIF(DATE(YEAR(C29),MONTH(C29),1),DATE(YEAR(C30),MONTH(C30)+1,1),"m")-SUM(C35:C43))) -> 0 | D44: =IF(F31="","",IF(F29="旧定率法",IF(F43*F31<=F43-C31*0.05,F43*F31*C44/12,IF(OFFSET(H44,-1,0)=1,(F43-C31*0.05)*C44/12,IF(F43-OFFSET(F35,MATCH(0,H35:H49,0)-1,0)/5<=0,F43-1,OFFSET(F35,MATCH(0,H35:H49,0)-1,0)/5*C44/12))),IF(F43*F31>F32,F43*F31*C44/12,IF(OFFSET(F35,MATCH(0,I35:I49,0)-2,0)-OFFSET(F35,MATCH(0,I35:I49,0)-2,0)*F33>0,OFFSET(F35,MATCH(0,I35:I49,0)-2,0)*F33*C44/12,IF(OFFSET(I44,-1,0)=1,OFFSET(F35,MATCH(0,I35:I49,0)-2,0)-1,0))))) -> 0 | E44: 0 | F44: 2777778 | H44: =IF(F32="",IF(SUM(E35:E43)+(F43*F31)<=C31*0.95,1,0),1) -> 1 | I44: =IF(F43*F31>F32,1,0) -> 1
A45: 2029 | B45: 11 | C45: =IF($C$3="",0,IF(DATEDIF(DATE(YEAR(C29),MONTH(C29),1),DATE(YEAR(C30),MONTH(C30)+1,1),"m")-SUM(C35:C44)>=12,12,DATEDIF(DATE(YEAR(C29),MONTH(C29),1),DATE(YEAR(C30),MONTH(C30)+1,1),"m")-SUM(C35:C44))) -> 0 | D45: =IF(F31="","",IF(F29="旧定率法",IF(F44*F31<=F44-C31*0.05,F44*F31*C45/12,IF(OFFSET(H45,-1,0)=1,(F44-C31*0.05)*C45/12,IF(F44-OFFSET(F35,MATCH(0,H35:H49,0)-1,0)/5<=0,F44-1,OFFSET(F35,MATCH(0,H35:H49,0)-1,0)/5*C45/12))),IF(F44*F31>F32,F44*F31*C45/12,IF(OFFSET(F35,MATCH(0,I35:I49,0)-2,0)-OFFSET(F35,MATCH(0,I35:I49,0)-2,0)*F33>0,OFFSET(F35,MATCH(0,I35:I49,0)-2,0)*F33*C45/12,IF(OFFSET(I45,-1,0)=1,OFFSET(F35,MATCH(0,I35:I49,0)-2,0)-1,0))))) -> 0 | E45: 0 | F45: 2777778 | H45: =IF(F32="",IF(SUM(E35:E44)+(F44*F31)<=C31*0.95,1,0),1) -> 1 | I45: =IF(F44*F31>F32,1,0) -> 1
A46: 2030 | B46: 12 | C46: =IF($C$3="",0,IF(DATEDIF(DATE(YEAR(C29),MONTH(C29),1),DATE(YEAR(C30),MONTH(C30)+1,1),"m")-SUM(C35:C45)>=12,12,DATEDIF(DATE(YEAR(C29),MONTH(C29),1),DATE(YEAR(C30),MONTH(C30)+1,1),"m")-SUM(C35:C45))) -> 0 | D46: =IF(F31="","",IF(F29="旧定率法",IF(F45*F31<=F45-C31*0.05,F45*F31*C46/12,IF(OFFSET(H46,-1,0)=1,(F45-C31*0.05)*C46/12,IF(F45-OFFSET(F35,MATCH(0,H35:H49,0)-1,0)/5<=0,F45-1,OFFSET(F35,MATCH(0,H35:H49,0)-1,0)/5*C46/12))),IF(F45*F31>F32,F45*F31*C46/12,IF(OFFSET(F35,MATCH(0,I35:I49,0)-2,0)-OFFSET(F35,MATCH(0,I35:I49,0)-2,0)*F33>0,OFFSET(F35,MATCH(0,I35:I49,0)-2,0)*F33*C46/12,IF(OFFSET(I46,-1,0)=1,OFFSET(F35,MATCH(0,I35:I49,0)-2,0)-1,0))))) -> 0 | E46: 0 | F46: 2777778 | H46: =IF(F32="",IF(SUM(E35:E45)+(F45*F31)<=C31*0.95,1,0),1) -> 1 | I46: =IF(F45*F31>F32,1,0) -> 1
A47: 2031 | B47: 13 | C47: =IF($C$3="",0,IF(DATEDIF(DATE(YEAR(C29),MONTH(C29),1),DATE(YEAR(C30),MONTH(C30)+1,1),"m")-SUM(C35:C46)>=12,12,DATEDIF(DATE(YEAR(C29),MONTH(C29),1),DATE(YEAR(C30),MONTH(C30)+1,1),"m")-SUM(C35:C46))) -> 0 | D47: =IF(F31="","",IF(F29="旧定率法",IF(F46*F31<=F46-C31*0.05,F46*F31*C47/12,IF(OFFSET(H47,-1,0)=1,(F46-C31*0.05)*C47/12,IF(F46-OFFSET(F35,MATCH(0,H35:H49,0)-1,0)/5<=0,F46-1,OFFSET(F35,MATCH(0,H35:H49,0)-1,0)/5*C47/12))),IF(F46*F31>F32,F46*F31*C47/12,IF(OFFSET(F35,MATCH(0,I35:I49,0)-2,0)-OFFSET(F35,MATCH(0,I35:I49,0)-2,0)*F33>0,OFFSET(F35,MATCH(0,I35:I49,0)-2,0)*F33*C47/12,IF(OFFSET(I47,-1,0)=1,OFFSET(F35,MATCH(0,I35:I49,0)-2,0)-1,0))))) -> 0 | E47: 0 | F47: 2777778 | H47: =IF(F32="",IF(SUM(E35:E46)+(F46*F31)<=C31*0.95,1,0),1) -> 1 | I47: =IF(F46*F31>F32,1,0) -> 1
A48: 2032 | B48: 14 | C48: =IF($C$3="",0,IF(DATEDIF(DATE(YEAR(C29),MONTH(C29),1),DATE(YEAR(C30),MONTH(C30)+1,1),"m")-SUM(C35:C47)>=12,12,DATEDIF(DATE(YEAR(C29),MONTH(C29),1),DATE(YEAR(C30),MONTH(C30)+1,1),"m")-SUM(C35:C47))) -> 0 | D48: =IF(F31="","",IF(F29="旧定率法",IF(F47*F31<=F47-C31*0.05,F47*F31*C48/12,IF(OFFSET(H48,-1,0)=1,(F47-C31*0.05)*C48/12,IF(F47-OFFSET(F35,MATCH(0,H35:H49,0)-1,0)/5<=0,F47-1,OFFSET(F35,MATCH(0,H35:H49,0)-1,0)/5*C48/12))),IF(F47*F31>F32,F47*F31*C48/12,IF(OFFSET(F35,MATCH(0,I35:I49,0)-2,0)-OFFSET(F35,MATCH(0,I35:I49,0)-2,0)*F33>0,OFFSET(F35,MATCH(0,I35:I49,0)-2,0)*F33*C48/12,IF(OFFSET(I48,-1,0)=1,OFFSET(F35,MATCH(0,I35:I49,0)-2,0)-1,0))))) -> 0 | E48: 0 | F48: 2777778 | H48: =IF(F32="",IF(SUM(E35:E47)+(F47*F31)<=C31*0.95,1,0),1) -> 1 | I48: =IF(F47*F31>F32,1,0) -> 1
A49: 2033 | B49: 15 | C49: =IF($C$3="",0,IF(DATEDIF(DATE(YEAR(C29),MONTH(C29),1),DATE(YEAR(C30),MONTH(C30)+1,1),"m")-SUM(C35:C48)>=12,12,DATEDIF(DATE(YEAR(C29),MONTH(C29),1),DATE(YEAR(C30),MONTH(C30)+1,1),"m")-SUM(C35:C48))) -> 0 | D49: =IF(F31="","",IF(F29="旧定率法",IF(F48*F31<=F48-C31*0.05,F48*F31*C49/12,IF(OFFSET(H49,-1,0)=1,(F48-C31*0.05)*C49/12,IF(F48-OFFSET(F35,MATCH(0,H35:H49,0)-1,0)/5<=0,F48-1,OFFSET(F35,MATCH(0,H35:H49,0)-1,0)/5*C49/12))),IF(F48*F31>F32,F48*F31*C49/12,IF(OFFSET(F35,MATCH(0,I35:I49,0)-2,0)-OFFSET(F35,MATCH(0,I35:I49,0)-2,0)*F33>0,OFFSET(F35,MATCH(0,I35:I49,0)-2,0)*F33*C49/12,IF(OFFSET(I49,-1,0)=1,OFFSET(F35,MATCH(0,I35:I49,0)-2,0)-1,0))))) -> 0 | E49: 0 | F49: 2777778 | G49: ② | H49: =IF(F32="",IF(SUM(E35:E48)+(F48*F31)<=C31*0.95,1,0),1) -> 1 | I49: =IF(F48*F31>F32,1,0) -> 1
A51: ２．補助割合
A52: ＜各年度の年度末中間検査、確定検査の経費発生調書に記載されている数字の転記＞
A54: 補助期間 （年度） | B54: 補助対象費用欄【e】の補助金額 | C54: 補助対象費用欄【e】のⅣ-2学術機関等共同研究費 | D54: 当年度発生額合計欄【b】の総計B | E54: 当年度発生学合計欄【b】のⅣ-2学術機関等共同研究費
A55: 2017 | B55: 1000000 | C55: 200000 | D55: 2000000 | E55: 200000
A56: 2018 | B56: 1000000 | C56: 200000 | D56: 2000000 | E56: 200000
A57: 2019 | B57: 1000000 | C57: 200000 | D57: 2000000 | E57: 200000
A58: 合計額 | B58: =SUM(B55:B57) -> 3000000 | C58: =SUM(C55:C57) -> 600000 | D58: =SUM(D55:D57) -> 6000000 | E58: =SUM(E55:E57) -> 600000
A61: ３．補助相当額
B62: 残存簿価相当額（合計） | C62: =F26+F49 -> 3439140
B63: 補助割合 | C63: =(B58-C58)/(D58-E58) -> 0.4444444444
B65: 補助金相当額 | C65: =ROUNDDOWN(C62*C63,0) -> 1528506

Sheet (記載例)定額法
A2: 【残存簿価相当額・補助金相当額計算書】
B3: 決 算 月： | C3: 3 | E3: 償却額の端数処理： | F3: 切り捨て
A4: １．残存簿価相当額計算
A5: 財産名①： | B5: AAAAAAAAAA
B6: 登録日： | C6: 2006-03-31 | E6: 償却方法： | F6: =IF(C6<=DATE(2007,3,31),"旧定額法","定額法") -> 旧定額法
B7: 処分時期： | C7: 2020-10-01 | E7: 耐用年数： | F7: 8
B8: 財産取得価格(税抜)： | C8: 10000000 | E8: 償却率： | F8: =IF(C6<=DATE(2007,3,31),VLOOKUP(F7,'（削除禁止）償却率'!A:J,2,FALSE),VLOOKUP(F7,'（削除禁止）償却率'!A:J,3,FALSE)) -> 0.125
A11: 西暦 | C11: か月 | E11: 償却額 （端数処理後） | F11: 期末帳簿価格
A12: =IF(C3=12,YEAR(C6),IF(C3<MONTH(C6),YEAR(C6),YEAR(C6)-1)) -> 2005 | B12: 1 | C12: =IF($C$3="",0,IF($C$3=12,12-MONTH(C6)+1,IF($C$3<MONTH(C6),12+$C$3-MONTH(C6)+1,$C$3-MONTH(C6)+1))) -> 1 | D12: =IF(F8="","",IF(F6="旧定額法",C8*F8*0.9*C12/12,C8*F8*C12/12)) -> 93750 | E12: 93750 | F12: =C8-E12 -> 9906250 | H12: =IF(C8*F8*0.9>C8-C8*0.05,0,1) -> 1
A13: =A12+1 -> 2006 | B13: 2 | C13: =IF($C$3="",0,IF(DATEDIF(DATE(YEAR(C6),MONTH(C6),1),DATE(YEAR(C7),MONTH(C7)+1,1),"m")-SUM(C12:C12)>=12,12,DATEDIF(DATE(YEAR(C6),MONTH(C6),1),DATE(YEAR(C7),MONTH(C7)+1,1),"m")-SUM(C12:C12))) -> 12 | D13: =IF(F8="","",IF(F6="旧定額法",IF(C8*F8*0.9<=F12-C8*0.05,C8*F8*0.9*C13/12,IF(OFFSET(H13,-1,0)=1,(F12-C8*0.05)*C13/12,IF(F12-OFFSET(F12,MATCH(0,H12:H26,0)-1,0)/5<=0,F12-1,(OFFSET(F12,MATCH(0,H12:H26,0)-1,0))/5*C13/12))),IF(IF(F12-C8*F8*C13/12>0,C8*F8*C13/12,F12-1)>0,IF(F12-C8*F8*C13/12>0,C8*F8*C13/12,F12-1),0))) -> 1125000 | E13: 1125000 | F13: =F12-E13 -> 8781250 | H13: =IF(C8*F8*0.9>F12-C8*0.05,0,1) -> 1
A14: 2007 | B14: 3 | C14: =IF($C$3="",0,IF(DATEDIF(DATE(YEAR(C6),MONTH(C6),1),DATE(YEAR(C7),MONTH(C7)+1,1),"m")-SUM(C12:C13)>=12,12,DATEDIF(DATE(YEAR(C6),MONTH(C6),1),DATE(YEAR(C7),MONTH(C7)+1,1),"m")-SUM(C12:C13))) -> 12 | D14: =IF(F8="","",IF(F6="旧定額法",IF(C8*F8*0.9<=F13-C8*0.05,C8*F8*0.9*C14/12,IF(OFFSET(H14,-1,0)=1,(F13-C8*0.05)*C14/12,IF(F13-OFFSET(F12,MATCH(0,H12:H26,0)-1,0)/5<=0,F13-1,(OFFSET(F12,MATCH(0,H12:H26,0)-1,0))/5*C14/12))),IF(IF(F13-C8*F8*C14/12>0,C8*F8*C14/12,F13-1)>0,IF(F13-C8*F8*C14/12>0,C8*F8*C14/12,F13-1),0))) -> 1125000 | E14: 1125000 | F14: =F13-E14 -> 7656250 | H14: =IF(C8*F8*0.9>F13-C8*0.05,0,1) -> 1
A15: 2008 | B15: 4 | C15: =IF($C$3="",0,IF(DATEDIF(DATE(YEAR(C6),MONTH(C6),1),DATE(YEAR(C7),MONTH(C7)+1,1),"m")-SUM(C12:C14)>=12,12,DATEDIF(DATE(YEAR(C6),MONTH(C6),1),DATE(YEAR(C7),MONTH(C7)+1,1),"m")-SUM(C12:C14))) -> 12 | D15: =IF(F8="","",IF(F6="旧定額法",IF(C8*F8*0.9<=F14-C8*0.05,C8*F8*0.9*C15/12,IF(OFFSET(H15,-1,0)=1,(F14-C8*0.05)*C15/12,IF(F14-OFFSET(F12,MATCH(0,H12:H26,0)-1,0)/5<=0,F14-1,(OFFSET(F12,MATCH(0,H12:H26,0)-1,0))/5*C15/12))),IF(IF(F14-C8*F8*C15/12>0,C8*F8*C15/12,F14-1)>0,IF(F14-C8*F8*C15/12>0,C8*F8*C15/12,F14-1),0))) -> 1125000 | E15: 1125000 | F15: 6531250 | H15: =IF(C8*F8*0.9>F14-C8*0.05,0,1) -> 1
A16: 2009 | B16: 5 | C16: =IF($C$3="",0,IF(DATEDIF(DATE(YEAR(C6),MONTH(C6),1),DATE(YEAR(C7),MONTH(C7)+1,1),"m")-SUM(C12:C15)>=12,12,DATEDIF(DATE(YEAR(C6),MONTH(C6),1),DATE(YEAR(C7),MONTH(C7)+1,1),"m")-SUM(C12:C15))) -> 12 | D16: =IF(F8="","",IF(F6="旧定額法",IF(C8*F8*0.9<=F15-C8*0.05,C8*F8*0.9*C16/12,IF(OFFSET(H16,-1,0)=1,(F15-C8*0.05)*C16/12,IF(F15-OFFSET(F12,MATCH(0,H12:H26,0)-1,0)/5<=0,F15-1,(OFFSET(F12,MATCH(0,H12:H26,0)-1,0))/5*C16/12))),IF(IF(F15-C8*F8*C16/12>0,C8*F8*C16/12,F15-1)>0,IF(F15-C8*F8*C16/12>0,C8*F8*C16/12,F15-1),0))) -> 1125000 | E16: 1125000 | F16: 5406250 | H16: =IF(C8*F8*0.9>F15-C8*0.05,0,1) -> 1
A17: 2010 | B17: 6 | C17: =IF($C$3="",0,IF(DATEDIF(DATE(YEAR(C6),MONTH(C6),1),DATE(YEAR(C7),MONTH(C7)+1,1),"m")-SUM(C12:C16)>=12,12,DATEDIF(DATE(YEAR(C6),MONTH(C6),1),DATE(YEAR(C7),MONTH(C7)+1,1),"m")-SUM(C12:C16))) -> 12 | D17: =IF(F8="","",IF(F6="旧定額法",IF(C8*F8*0.9<=F16-C8*0.05,C8*F8*0.9*C17/12,IF(OFFSET(H17,-1,0)=1,(F16-C8*0.05)*C17/12,IF(F16-OFFSET(F12,MATCH(0,H12:H26,0)-1,0)/5<=0,F16-1,(OFFSET(F12,MATCH(0,H12:H26,0)-1,0))/5*C17/12))),IF(IF(F16-C8*F8*C17/12>0,C8*F8*C17/12,F16-1)>0,IF(F16-C8*F8*C17/12>0,C8*F8*C17/12,F16-1),0))) -> 1125000 | E17: 1125000 | F17: 4281250 | H17: =IF(C8*F8*0.9>F16-C8*0.05,0,1) -> 1
A18: 2011 | B18: 7 | C18: =IF($C$3="",0,IF(DATEDIF(DATE(YEAR(C6),MONTH(C6),1),DATE(YEAR(C7),MONTH(C7)+1,1),"m")-SUM(C12:C17)>=12,12,DATEDIF(DATE(YEAR(C6),MONTH(C6),1),DATE(YEAR(C7),MONTH(C7)+1,1),"m")-SUM(C12:C17))) -> 12 | D18: =IF(F8="","",IF(F6="旧定額法",IF(C8*F8*0.9<=F17-C8*0.05,C8*F8*0.9*C18/12,IF(OFFSET(H18,-1,0)=1,(F17-C8*0.05)*C18/12,IF(F17-OFFSET(F12,MATCH(0,H12:H26,0)-1,0)/5<=0,F17-1,(OFFSET(F12,MATCH(0,H12:H26,0)-1,0))/5*C18/12))),IF(IF(F17-C8*F8*C18/12>0,C8*F8*C18/12,F17-1)>0,IF(F17-C8*F8*C18/12>0,C8*F8*C18/12,F17-1),0))) -> 1125000 | E18: 1125000 | F18: 3156250 | H18: =IF(C8*F8*0.9>F17-C8*0.05,0,1) -> 1
A19: 2012 | B19: 8 | C19: =IF($C$3="",0,IF(DATEDIF(DATE(YEAR(C6),MONTH(C6),1),DATE(YEAR(C7),MONTH(C7)+1,1),"m")-SUM(C12:C18)>=12,12,DATEDIF(DATE(YEAR(C6),MONTH(C6),1),DATE(YEAR(C7),MONTH(C7)+1,1),"m")-SUM(C12:C18))) -> 12 | D19: =IF(F8="","",IF(F6="旧定額法",IF(C8*F8*0.9<=F18-C8*0.05,C8*F8*0.9*C19/12,IF(OFFSET(H19,-1,0)=1,(F18-C8*0.05)*C19/12,IF(F18-OFFSET(F12,MATCH(0,H12:H26,0)-1,0)/5<=0,F18-1,(OFFSET(F12,MATCH(0,H12:H26,0)-1,0))/5*C19/12))),IF(IF(F18-C8*F8*C19/12>0,C8*F8*C19/12,F18-1)>0,IF(F18-C8*F8*C19/12>0,C8*F8*C19/12,F18-1),0))) -> 1125000 | E19: 1125000 | F19: 2031250 | H19: =IF(C8*F8*0.9>F18-C8*0.05,0,1) -> 1
A20: 2013 | B20: 9 | C20: =IF($C$3="",0,IF(DATEDIF(DATE(YEAR(C6),MONTH(C6),1),DATE(YEAR(C7),MONTH(C7)+1,1),"m")-SUM(C12:C19)>=12,12,DATEDIF(DATE(YEAR(C6),MONTH(C6),1),DATE(YEAR(C7),MONTH(C7)+1,1),"m")-SUM(C12:C19))) -> 12 | D20: =IF(F8="","",IF(F6="旧定額法",IF(C8*F8*0.9<=F19-C8*0.05,C8*F8*0.9*C20/12,IF(OFFSET(H20,-1,0)=1,(F19-C8*0.05)*C20/12,IF(F19-OFFSET(F12,MATCH(0,H12:H26,0)-1,0)/5<=0,F19-1,(OFFSET(F12,MATCH(0,H12:H26,0)-1,0))/5*C20/12))),IF(IF(F19-C8*F8*C20/12>0,C8*F8*C20/12,F19-1)>0,IF(F19-C8*F8*C20/12>0,C8*F8*C20/12,F19-1),0))) -> 1125000 | E20: 1125000 | F20: 906250 | H20: =IF(C8*F8*0.9>F19-C8*0.05,0,1) -> 1
A21: 2014 | B21: 10 | C21: =IF($C$3="",0,IF(DATEDIF(DATE(YEAR(C6),MONTH(C6),1),DATE(YEAR(C7),MONTH(C7)+1,1),"m")-SUM(C12:C20)>=12,12,DATEDIF(DATE(YEAR(C6),MONTH(C6),1),DATE(YEAR(C7),MONTH(C7)+1,1),"m")-SUM(C12:C20))) -> 12 | D21: =IF(F8="","",IF(F6="旧定額法",IF(C8*F8*0.9<=F20-C8*0.05,C8*F8*0.9*C21/12,IF(OFFSET(H21,-1,0)=1,(F20-C8*0.05)*C21/12,IF(F20-OFFSET(F12,MATCH(0,H12:H26,0)-1,0)/5<=0,F20-1,(OFFSET(F12,MATCH(0,H12:H26,0)-1,0))/5*C21/12))),IF(IF(F20-C8*F8*C21/12>0,C8*F8*C21/12,F20-1)>0,IF(F20-C8*F8*C21/12>0,C8*F8*C21/12,F20-1),0))) -> 406250 | E21: 406250 | F21: 500000 | H21: =IF(C8*F8*0.9>F20-C8*0.05,0,1) -> 0
A22: 2015 | B22: 11 | C22: =IF($C$3="",0,IF(DATEDIF(DATE(YEAR(C6),MONTH(C6),1),DATE(YEAR(C7),MONTH(C7)+1,1),"m")-SUM(C12:C21)>=12,12,DATEDIF(DATE(YEAR(C6),MONTH(C6),1),DATE(YEAR(C7),MONTH(C7)+1,1),"m")-SUM(C12:C21))) -> 12 | D22: =IF(F8="","",IF(F6="旧定額法",IF(C8*F8*0.9<=F21-C8*0.05,C8*F8*0.9*C22/12,IF(OFFSET(H22,-1,0)=1,(F21-C8*0.05)*C22/12,IF(F21-OFFSET(F12,MATCH(0,H12:H26,0)-1,0)/5<=0,F21-1,(OFFSET(F12,MATCH(0,H12:H26,0)-1,0))/5*C22/12))),IF(IF(F21-C8*F8*C22/12>0,C8*F8*C22/12,F21-1)>0,IF(F21-C8*F8*C22/12>0,C8*F8*C22/12,F21-1),0))) -> 100000 | E22: 100000 | F22: 400000 | H22: =IF(C8*F8*0.9>F21-C8*0.05,0,1) -> 0
A23: 2016 | B23: 12 | C23: =IF($C$3="",0,IF(DATEDIF(DATE(YEAR(C6),MONTH(C6),1),DATE(YEAR(C7),MONTH(C7)+1,1),"m")-SUM(C12:C22)>=12,12,DATEDIF(DATE(YEAR(C6),MONTH(C6),1),DATE(YEAR(C7),MONTH(C7)+1,1),"m")-SUM(C12:C22))) -> 12 | D23: =IF(F8="","",IF(F6="旧定額法",IF(C8*F8*0.9<=F22-C8*0.05,C8*F8*0.9*C23/12,IF(OFFSET(H23,-1,0)=1,(F22-C8*0.05)*C23/12,IF(F22-OFFSET(F12,MATCH(0,H12:H26,0)-1,0)/5<=0,F22-1,(OFFSET(F12,MATCH(0,H12:H26,0)-1,0))/5*C23/12))),IF(IF(F22-C8*F8*C23/12>0,C8*F8*C23/12,F22-1)>0,IF(F22-C8*F8*C23/12>0,C8*F8*C23/12,F22-1),0))) -> 100000 | E23: 100000 | F23: 300000 | H23: =IF(C8*F8*0.9>F22-C8*0.05,0,1) -> 0
A24: 2017 | B24: 13 | C24: =IF($C$3="",0,IF(DATEDIF(DATE(YEAR(C6),MONTH(C6),1),DATE(YEAR(C7),MONTH(C7)+1,1),"m")-SUM(C12:C23)>=12,12,DATEDIF(DATE(YEAR(C6),MONTH(C6),1),DATE(YEAR(C7),MONTH(C7)+1,1),"m")-SUM(C12:C23))) -> 12 | D24: =IF(F8="","",IF(F6="旧定額法",IF(C8*F8*0.9<=F23-C8*0.05,C8*F8*0.9*C24/12,IF(OFFSET(H24,-1,0)=1,(F23-C8*0.05)*C24/12,IF(F23-OFFSET(F12,MATCH(0,H12:H26,0)-1,0)/5<=0,F23-1,(OFFSET(F12,MATCH(0,H12:H26,0)-1,0))/5*C24/12))),IF(IF(F23-C8*F8*C24/12>0,C8*F8*C24/12,F23-1)>0,IF(F23-C8*F8*C24/12>0,C8*F8*C24/12,F23-1),0))) -> 100000 | E24: 100000 | F24: 200000 | H24: =IF(C8*F8*0.9>F23-C8*0.05,0,1) -> 0
A25: 2018 | B25: 14 | C25: =IF($C$3="",0,IF(DATEDIF(DATE(YEAR(C6),MONTH(C6),1),DATE(YEAR(C7),MONTH(C7)+1,1),"m")-SUM(C12:C24)>=12,12,DATEDIF(DATE(YEAR(C6),MONTH(C6),1),DATE(YEAR(C7),MONTH(C7)+1,1),"m")-SUM(C12:C24))) -> 12 | D25: =IF(F8="","",IF(F6="旧定額法",IF(C8*F8*0.9<=F24-C8*0.05,C8*F8*0.9*C25/12,IF(OFFSET(H25,-1,0)=1,(F24-C8*0.05)*C25/12,IF(F24-OFFSET(F12,MATCH(0,H12:H26,0)-1,0)/5<=0,F24-1,(OFFSET(F12,MATCH(0,H12:H26,0)-1,0))/5*C25/12))),IF(IF(F24-C8*F8*C25/12>0,C8*F8*C25/12,F24-1)>0,IF(F24-C8*F8*C25/12>0,C8*F8*C25/12,F24-1),0))) -> 100000 | E25: 100000 | F25: 100000 | H25: =IF(C8*F8*0.9>F24-C8*0.05,0,1) -> 0
A26: 2019 | B26: 15 | C26: =IF($C$3="",0,IF(DATEDIF(DATE(YEAR(C6),MONTH(C6),1),DATE(YEAR(C7),MONTH(C7)+1,1),"m")-SUM(C12:C25)>=12,12,DATEDIF(DATE(YEAR(C6),MONTH(C6),1),DATE(YEAR(C7),MONTH(C7)+1,1),"m")-SUM(C12:C25))) -> 12 | D26: =IF(F8="","",IF(F6="旧定額法",IF(C8*F8*0.9<=F25-C8*0.05,C8*F8*0.9*C26/12,IF(OFFSET(H26,-1,0)=1,(F25-C8*0.05)*C26/12,IF(F25-OFFSET(F12,MATCH(0,H12:H26,0)-1,0)/5<=0,F25-1,(OFFSET(F12,MATCH(0,H12:H26,0)-1,0))/5*C26/12))),IF(IF(F25-C8*F8*C26/12>0,C8*F8*C26/12,F25-1)>0,IF(F25-C8*F8*C26/12>0,C8*F8*C26/12,F25-1),0))) -> 99999 | E26: 99999 | F26: 1 | G26: ① | H26: =IF(C8*F8*0.9>F25-C8*0.05,0,1) -> 0
A28: 財産名②： | B28: BBBBBBBBBB
B29: 登録日： | C29: 2019-12-03 | E29: 償却方法： | F29: =IF(C29<=DATE(2007,3,31),"旧定額法","定額法") -> 定額法
B30: 処分時期： | C30: 2021-11-01 | E30: 耐用年数： | F30: 4
B31: 財産取得価格(税抜)： | C31: 10000000 | E31: 償却率： | F31: =IF(C29<=DATE(2007,3,31),VLOOKUP(F30,'（削除禁止）償却率'!A:J,2,FALSE),VLOOKUP(F30,'（削除禁止）償却率'!A:J,3,FALSE)) -> 0.25
A34: 西暦 | C34: か月 | E34: 償却額 （端数処理後） | F34: 期末帳簿価格
A35: =IF(C3=12,YEAR(C29),IF(C3<MONTH(C29),YEAR(C29),YEAR(C29)-1)) -> 2019 | B35: 1 | C35: =IF($C$3="",0,IF($C$3=12,12-MONTH(C29)+1,IF($C$3<MONTH(C29),$C$3-MONTH(C29)+12+1,$C$3-MONTH(C29)+1))) -> 4 | D35: =IF(F31="","",IF(F29="旧定額法",C31*F31*0.9*C35/12,C31*F31*C35/12)) -> 833333.3333 | E35: 833333 | F35: =C31-E35 -> 9166667 | H35: =IF(C31*F31*0.9>C31-C31*0.05,0,1) -> 1
A36: =A35+1 -> 2020 | B36: 2 | C36: =IF($C$3="",0,IF(DATEDIF(DATE(YEAR(C29),MONTH(C29),1),DATE(YEAR(C30),MONTH(C30)+1,1),"m")-SUM(C35:C35)>=12,12,DATEDIF(DATE(YEAR(C29),MONTH(C29),1),DATE(YEAR(C30),MONTH(C30)+1,1),"m")-SUM(C35:C35))) -> 12 | D36: =IF(F31="","",IF(F29="旧定額法",IF(C31*F31*0.9<=F35-C31*0.05,C31*F31*0.9*C36/12,IF(OFFSET(H36,-1,0)=1,(F35-C31*0.05)*C36/12,IF(F35-OFFSET(F35,MATCH(0,H35:H49,0)-1,0)/5<=0,F35-1,(OFFSET(F35,MATCH(0,H35:H49,0)-1,0))/5*C36/12))),IF(IF(F35-C31*F31*C36/12>0,C31*F31*C36/12,F35-1)>0,IF(F35-C31*F31*C36/12>0,C31*F31*C36/12,F35-1),0))) -> 2500000 | E36: 2500000 | F36: =F35-E36 -> 6666667 | H36: =IF(C31*F31*0.9>F35-C31*0.05,0,1) -> 1
A37: 2021 | B37: 3 | C37: =IF($C$3="",0,IF(DATEDIF(DATE(YEAR(C29),MONTH(C29),1),DATE(YEAR(C30),MONTH(C30)+1,1),"m")-SUM(C35:C36)>=12,12,DATEDIF(DATE(YEAR(C29),MONTH(C29),1),DATE(YEAR(C30),MONTH(C30)+1,1),"m")-SUM(C35:C36))) -> 8 | D37: =IF(F31="","",IF(F29="旧定額法",IF(C31*F31*0.9<=F36-C31*0.05,C31*F31*0.9*C37/12,IF(OFFSET(H37,-1,0)=1,(F36-C31*0.05)*C37/12,IF(F36-OFFSET(F35,MATCH(0,H35:H49,0)-1,0)/5<=0,F36-1,(OFFSET(F35,MATCH(0,H35:H49,0)-1,0))/5*C37/12))),IF(IF(F36-C31*F31*C37/12>0,C31*F31*C37/12,F36-1)>0,IF(F36-C31*F31*C37/12>0,C31*F31*C37/12,F36-1),0))) -> 1666666.667 | E37: 1666666 | F37: =F36-E37 -> 5000001 | H37: =IF(C31*F31*0.9>F36-C31*0.05,0,1) -> 1
A38: 2022 | B38: 4 | C38: =IF($C$3="",0,IF(DATEDIF(DATE(YEAR(C29),MONTH(C29),1),DATE(YEAR(C30),MONTH(C30)+1,1),"m")-SUM(C35:C37)>=12,12,DATEDIF(DATE(YEAR(C29),MONTH(C29),1),DATE(YEAR(C30),MONTH(C30)+1,1),"m")-SUM(C35:C37))) -> 0 | D38: =IF(F31="","",IF(F29="旧定額法",IF(C31*F31*0.9<=F37-C31*0.05,C31*F31*0.9*C38/12,IF(OFFSET(H38,-1,0)=1,(F37-C31*0.05)*C38/12,IF(F37-OFFSET(F35,MATCH(0,H35:H49,0)-1,0)/5<=0,F37-1,(OFFSET(F35,MATCH(0,H35:H49,0)-1,0))/5*C38/12))),IF(IF(F37-C31*F31*C38/12>0,C31*F31*C38/12,F37-1)>0,IF(F37-C31*F31*C38/12>0,C31*F31*C38/12,F37-1),0))) -> 0 | E38: 0 | F38: =F37-E38 -> 5000001 | H38: =IF(C31*F31*0.9>F37-C31*0.05,0,1) -> 1
A39: 2023 | B39: 5 | C39: =IF($C$3="",0,IF(DATEDIF(DATE(YEAR(C29),MONTH(C29),1),DATE(YEAR(C30),MONTH(C30)+1,1),"m")-SUM(C35:C38)>=12,12,DATEDIF(DATE(YEAR(C29),MONTH(C29),1),DATE(YEAR(C30),MONTH(C30)+1,1),"m")-SUM(C35:C38))) -> 0 | D39: =IF(F31="","",IF(F29="旧定額法",IF(C31*F31*0.9<=F38-C31*0.05,C31*F31*0.9*C39/12,IF(OFFSET(H39,-1,0)=1,(F38-C31*0.05)*C39/12,IF(F38-OFFSET(F35,MATCH(0,H35:H49,0)-1,0)/5<=0,F38-1,(OFFSET(F35,MATCH(0,H35:H49,0)-1,0))/5*C39/12))),IF(IF(F38-C31*F31*C39/12>0,C31*F31*C39/12,F38-1)>0,IF(F38-C31*F31*C39/12>0,C31*F31*C39/12,F38-1),0))) -> 0 | E39: 0 | F39: 5000001 | H39: =IF(C31*F31*0.9>F38-C31*0.05,0,1) -> 1
A40: 2024 | B40: 6 | C40: =IF($C$3="",0,IF(DATEDIF(DATE(YEAR(C29),MONTH(C29),1),DATE(YEAR(C30),MONTH(C30)+1,1),"m")-SUM(C35:C39)>=12,12,DATEDIF(DATE(YEAR(C29),MONTH(C29),1),DATE(YEAR(C30),MONTH(C30)+1,1),"m")-SUM(C35:C39))) -> 0 | D40: =IF(F31="","",IF(F29="旧定額法",IF(C31*F31*0.9<=F39-C31*0.05,C31*F31*0.9*C40/12,IF(OFFSET(H40,-1,0)=1,(F39-C31*0.05)*C40/12,IF(F39-OFFSET(F35,MATCH(0,H35:H49,0)-1,0)/5<=0,F39-1,(OFFSET(F35,MATCH(0,H35:H49,0)-1,0))/5*C40/12))),IF(IF(F39-C31*F31*C40/12>0,C31*F31*C40/12,F39-1)>0,IF(F39-C31*F31*C40/12>0,C31*F31*C40/12,F39-1),0))) -> 0 | E40: 0 | F40: 5000001 | H40: =IF(C31*F31*0.9>F39-C31*0.05,0,1) -> 1
A41: 2025 | B41: 7 | C41: =IF($C$3="",0,IF(DATEDIF(DATE(YEAR(C29),MONTH(C29),1),DATE(YEAR(C30),MONTH(C30)+1,1),"m")-SUM(C35:C40)>=12,12,DATEDIF(DATE(YEAR(C29),MONTH(C29),1),DATE(YEAR(C30),MONTH(C30)+1,1),"m")-SUM(C35:C40))) -> 0 | D41: =IF(F31="","",IF(F29="旧定額法",IF(C31*F31*0.9<=F40-C31*0.05,C31*F31*0.9*C41/12,IF(OFFSET(H41,-1,0)=1,(F40-C31*0.05)*C41/12,IF(F40-OFFSET(F35,MATCH(0,H35:H49,0)-1,0)/5<=0,F40-1,(OFFSET(F35,MATCH(0,H35:H49,0)-1,0))/5*C41/12))),IF(IF(F40-C31*F31*C41/12>0,C31*F31*C41/12,F40-1)>0,IF(F40-C31*F31*C41/12>0,C31*F31*C41/12,F40-1),0))) -> 0 | E41: 0 | F41: 5000001 | H41: =IF(C31*F31*0.9>F40-C31*0.05,0,1) -> 1
A42: 2026 | B42: 8 | C42: =IF($C$3="",0,IF(DATEDIF(DATE(YEAR(C29),MONTH(C29),1),DATE(YEAR(C30),MONTH(C30)+1,1),"m")-SUM(C35:C41)>=12,12,DATEDIF(DATE(YEAR(C29),MONTH(C29),1),DATE(YEAR(C30),MONTH(C30)+1,1),"m")-SUM(C35:C41))) -> 0 | D42: =IF(F31="","",IF(F29="旧定額法",IF(C31*F31*0.9<=F41-C31*0.05,C31*F31*0.9*C42/12,IF(OFFSET(H42,-1,0)=1,(F41-C31*0.05)*C42/12,IF(F41-OFFSET(F35,MATCH(0,H35:H49,0)-1,0)/5<=0,F41-1,(OFFSET(F35,MATCH(0,H35:H49,0)-1,0))/5*C42/12))),IF(IF(F41-C31*F31*C42/12>0,C31*F31*C42/12,F41-1)>0,IF(F41-C31*F31*C42/12>0,C31*F31*C42/12,F41-1),0))) -> 0 | E42: 0 | F42: 5000001 | H42: =IF(C31*F31*0.9>F41-C31*0.05,0,1) -> 1
A43: 2027 | B43: 9 | C43: =IF($C$3="",0,IF(DATEDIF(DATE(YEAR(C29),MONTH(C29),1),DATE(YEAR(C30),MONTH(C30)+1,1),"m")-SUM(C35:C42)>=12,12,DATEDIF(DATE(YEAR(C29),MONTH(C29),1),DATE(YEAR(C30),MONTH(C30)+1,1),"m")-SUM(C35:C42))) -> 0 | D43: =IF(F31="","",IF(F29="旧定額法",IF(C31*F31*0.9<=F42-C31*0.05,C31*F31*0.9*C43/12,IF(OFFSET(H43,-1,0)=1,(F42-C31*0.05)*C43/12,IF(F42-OFFSET(F35,MATCH(0,H35:H49,0)-1,0)/5<=0,F42-1,(OFFSET(F35,MATCH(0,H35:H49,0)-1,0))/5*C43/12))),IF(IF(F42-C31*F31*C43/12>0,C31*F31*C43/12,F42-1)>0,IF(F42-C31*F31*C43/12>0,C31*F31*C43/12,F42-1),0))) -> 0 | E43: 0 | F43: 5000001 | H43: =IF(C31*F31*0.9>F42-C31*0.05,0,1) -> 1
A44: 2028 | B44: 10 | C44: =IF($C$3="",0,IF(DATEDIF(DATE(YEAR(C29),MONTH(C29),1),DATE(YEAR(C30),MONTH(C30)+1,1),"m")-SUM(C35:C43)>=12,12,DATEDIF(DATE(YEAR(C29),MONTH(C29),1),DATE(YEAR(C30),MONTH(C30)+1,1),"m")-SUM(C35:C43))) -> 0 | D44: =IF(F31="","",IF(F29="旧定額法",IF(C31*F31*0.9<=F43-C31*0.05,C31*F31*0.9*C44/12,IF(OFFSET(H44,-1,0)=1,(F43-C31*0.05)*C44/12,IF(F43-OFFSET(F35,MATCH(0,H35:H49,0)-1,0)/5<=0,F43-1,(OFFSET(F35,MATCH(0,H35:H49,0)-1,0))/5*C44/12))),IF(IF(F43-C31*F31*C44/12>0,C31*F31*C44/12,F43-1)>0,IF(F43-C31*F31*C44/12>0,C31*F31*C44/12,F43-1),0))) -> 0 | E44: 0 | F44: 5000001 | H44: =IF(C31*F31*0.9>F43-C31*0.05,0,1) -> 1
A45: 2029 | B45: 11 | C45: =IF($C$3="",0,IF(DATEDIF(DATE(YEAR(C29),MONTH(C29),1),DATE(YEAR(C30),MONTH(C30)+1,1),"m")-SUM(C35:C44)>=12,12,DATEDIF(DATE(YEAR(C29),MONTH(C29),1),DATE(YEAR(C30),MONTH(C30)+1,1),"m")-SUM(C35:C44))) -> 0 | D45: =IF(F31="","",IF(F29="旧定額法",IF(C31*F31*0.9<=F44-C31*0.05,C31*F31*0.9*C45/12,IF(OFFSET(H45,-1,0)=1,(F44-C31*0.05)*C45/12,IF(F44-OFFSET(F35,MATCH(0,H35:H49,0)-1,0)/5<=0,F44-1,(OFFSET(F35,MATCH(0,H35:H49,0)-1,0))/5*C45/12))),IF(IF(F44-C31*F31*C45/12>0,C31*F31*C45/12,F44-1)>0,IF(F44-C31*F31*C45/12>0,C31*F31*C45/12,F44-1),0))) -> 0 | E45: 0 | F45: 5000001 | H45: =IF(C31*F31*0.9>F44-C31*0.05,0,1) -> 1
A46: 2030 | B46: 12 | C46: =IF($C$3="",0,IF(DATEDIF(DATE(YEAR(C29),MONTH(C29),1),DATE(YEAR(C30),MONTH(C30)+1,1),"m")-SUM(C35:C45)>=12,12,DATEDIF(DATE(YEAR(C29),MONTH(C29),1),DATE(YEAR(C30),MONTH(C30)+1,1),"m")-SUM(C35:C45))) -> 0 | D46: =IF(F31="","",IF(F29="旧定額法",IF(C31*F31*0.9<=F45-C31*0.05,C31*F31*0.9*C46/12,IF(OFFSET(H46,-1,0)=1,(F45-C31*0.05)*C46/12,IF(F45-OFFSET(F35,MATCH(0,H35:H49,0)-1,0)/5<=0,F45-1,(OFFSET(F35,MATCH(0,H35:H49,0)-1,0))/5*C46/12))),IF(IF(F45-C31*F31*C46/12>0,C31*F31*C46/12,F45-1)>0,IF(F45-C31*F31*C46/12>0,C31*F31*C46/12,F45-1),0))) -> 0 | E46: 0 | F46: 5000001 | H46: =IF(C31*F31*0.9>F45-C31*0.05,0,1) -> 1
A47: 2031 | B47: 13 | C47: =IF($C$3="",0,IF(DATEDIF(DATE(YEAR(C29),MONTH(C29),1),DATE(YEAR(C30),MONTH(C30)+1,1),"m")-SUM(C35:C46)>=12,12,DATEDIF(DATE(YEAR(C29),MONTH(C29),1),DATE(YEAR(C30),MONTH(C30)+1,1),"m")-SUM(C35:C46))) -> 0 | D47: =IF(F31="","",IF(F29="旧定額法",IF(C31*F31*0.9<=F46-C31*0.05,C31*F31*0.9*C47/12,IF(OFFSET(H47,-1,0)=1,(F46-C31*0.05)*C47/12,IF(F46-OFFSET(F35,MATCH(0,H35:H49,0)-1,0)/5<=0,F46-1,(OFFSET(F35,MATCH(0,H35:H49,0)-1,0))/5*C47/12))),IF(IF(F46-C31*F31*C47/12>0,C31*F31*C47/12,F46-1)>0,IF(F46-C31*F31*C47/12>0,C31*F31*C47/12,F46-1),0))) -> 0 | E47: 0 | F47: =F46-E47 -> 5000001 | H47: =IF(C31*F31*0.9>F46-C31*0.05,0,1) -> 1
A48: 2032 | B48: 14 | C48: =IF($C$3="",0,IF(DATEDIF(DATE(YEAR(C29),MONTH(C29),1),DATE(YEAR(C30),MONTH(C30)+1,1),"m")-SUM(C35:C47)>=12,12,DATEDIF(DATE(YEAR(C29),MONTH(C29),1),DATE(YEAR(C30),MONTH(C30)+1,1),"m")-SUM(C35:C47))) -> 0 | D48: =IF(F31="","",IF(F29="旧定額法",IF(C31*F31*0.9<=F47-C31*0.05,C31*F31*0.9*C48/12,IF(OFFSET(H48,-1,0)=1,(F47-C31*0.05)*C48/12,IF(F47-OFFSET(F35,MATCH(0,H35:H49,0)-1,0)/5<=0,F47-1,(OFFSET(F35,MATCH(0,H35:H49,0)-1,0))/5*C48/12))),IF(IF(F47-C31*F31*C48/12>0,C31*F31*C48/12,F47-1)>0,IF(F47-C31*F31*C48/12>0,C31*F31*C48/12,F47-1),0))) -> 0 | E48: 0 | F48: 5000001 | H48: =IF(C31*F31*0.9>F47-C31*0.05,0,1) -> 1
A49: 2033 | B49: 15 | C49: =IF($C$3="",0,IF(DATEDIF(DATE(YEAR(C29),MONTH(C29),1),DATE(YEAR(C30),MONTH(C30)+1,1),"m")-SUM(C35:C48)>=12,12,DATEDIF(DATE(YEAR(C29),MONTH(C29),1),DATE(YEAR(C30),MONTH(C30)+1,1),"m")-SUM(C35:C48))) -> 0 | D49: =IF(F31="","",IF(F29="旧定額法",IF(C31*F31*0.9<=F48-C31*0.05,C31*F31*0.9*C49/12,IF(OFFSET(H49,-1,0)=1,(F48-C31*0.05)*C49/12,IF(F48-OFFSET(F35,MATCH(0,H35:H49,0)-1,0)/5<=0,F48-1,(OFFSET(F35,MATCH(0,H35:H49,0)-1,0))/5*C49/12))),IF(IF(F48-C31*F31*C49/12>0,C31*F31*C49/12,F48-1)>0,IF(F48-C31*F31*C49/12>0,C31*F31*C49/12,F48-1),0))) -> 0 | E49: 0 | F49: 5000001 | G49: ② | H49: =IF(C31*F31*0.9>F48-C31*0.05,0,1) -> 1
A51: ２．補助割合
A52: ＜各年度の年度末中間検査、確定検査の経費発生調書に記載されている数字の転記＞
A54: 補助期間 （年度） | B54: 補助対象費用欄【e】の補助金額 | C54: 補助対象費用欄【e】のⅣ-2学術機関等共同研究費 | D54: 当年度発生額合計欄【b】の総計B | E54: 当年度発生学合計欄【b】のⅣ-2学術機関等共同研究費
A55: 2017 | B55: 1000000 | C55: 200000 | D55: 2000000 | E55: 200000
A56: 2018 | B56: 1000000 | C56: 200000 | D56: 2000000 | E56: 200000
A57: 2019 | B57: 1000000 | C57: 200000 | D57: 2000000 | E57: 200000
A58: 合計額 | B58: =SUM(B55:B57) -> 3000000 | C58: =SUM(C55:C57) -> 600000 | D58: =SUM(D55:D57) -> 6000000 | E58: =SUM(E55:E57) -> 600000
A61: ３．補助相当額
B62: 残存簿価相当額（合計） | C62: =F26+F49 -> 5000002
B63: 補助割合 | C63: =(B58-C58)/(D58-E58) -> 0.4444444444
B65: 補助金相当額 | C65: =ROUNDDOWN(C62*C63,0) -> 2222223

Sheet （削除禁止）償却率 (hidden)
A1: 耐用年数 | B1: 平成19年3月31日以前取得 | C1: 平成19年4月1日以降取得 | D1: 平成19年3月31日以前取得 | E1: 平成19年4月1日から平成24年3月31日までに取得 | H1: 平成24年4月1日以降に取得
B2: 旧定額法 償却率 | C2: 定額法 償却率 | D2: 旧定率法 償却率 | E2: 250％定率法 | H2: 200％定率法
E3: 償却率 | F3: 改定償却率 | G3: 保証率 | H3: 償却率 | I3: 改定償却率 | J3: 保証率
A4: 2 | B4: 0.5 | C4: 0.5 | D4: 0.684 | E4: 1 | F4: 1 | G4: 0 | H4: 1 | I4: 1 | J4: 0
A5: 3 | B5: 0.333 | C5: 0.334 | D5: 0.536 | E5: 0.833 | F5: 1 | G5: 0.02789 | H5: 0.667 | I5: 1 | J5: 0.11089
A6: 4 | B6: 0.25 | C6: 0.25 | D6: 0.438 | E6: 0.625 | F6: 1 | G6: 0.05274 | H6: 0.5 | I6: 1 | J6: 0.12499
A7: 5 | B7: 0.2 | C7: 0.2 | D7: 0.369 | E7: 0.5 | F7: 1 | G7: 0.06249 | H7: 0.4 | I7: 0.5 | J7: 0.108
A8: 6 | B8: 0.166 | C8: 0.167 | D8: 0.319 | E8: 0.417 | F8: 0.5 | G8: 0.05776 | H8: 0.333 | I8: 0.334 | J8: 0.09911
A9: 7 | B9: 0.142 | C9: 0.143 | D9: 0.28 | E9: 0.357 | F9: 0.5 | G9: 0.05496 | H9: 0.286 | I9: 0.334 | J9: 0.0868
A10: 8 | B10: 0.125 | C10: 0.125 | D10: 0.25 | E10: 0.313 | F10: 0.334 | G10: 0.05111 | H10: 0.25 | I10: 0.334 | J10: 0.07909
A11: 9 | B11: 0.111 | C11: 0.112 | D11: 0.226 | E11: 0.278 | F11: 0.334 | G11: 0.04731 | H11: 0.222 | I11: 0.25 | J11: 0.07126
A12: 10 | B12: 0.1 | C12: 0.1 | D12: 0.206 | E12: 0.25 | F12: 0.334 | G12: 0.04448 | H12: 0.2 | I12: 0.25 | J12: 0.06552
A13: 11 | B13: 0.09 | C13: 0.091 | D13: 0.189 | E13: 0.227 | F13: 0.25 | G13: 0.04123 | H13: 0.182 | I13: 0.2 | J13: 0.05992
A14: 12 | B14: 0.083 | C14: 0.084 | D14: 0.175 | E14: 0.208 | F14: 0.25 | G14: 0.0387 | H14: 0.167 | I14: 0.2 | J14: 0.05566
A15: 13 | B15: 0.076 | C15: 0.077 | D15: 0.162 | E15: 0.192 | F15: 0.2 | G15: 0.03633 | H15: 0.154 | I15: 0.167 | J15: 0.0518
A16: 14 | B16: 0.071 | C16: 0.072 | D16: 0.152 | E16: 0.179 | F16: 0.2 | G16: 0.03389 | H16: 0.143 | I16: 0.167 | J16: 0.04854
A17: 15 | B17: 0.066 | C17: 0.067 | D17: 0.142 | E17: 0.167 | F17: 0.2 | G17: 0.03217 | H17: 0.133 | I17: 0.143 | J17: 0.04565
A18: 16 | B18: 0.062 | C18: 0.063 | D18: 0.134 | E18: 0.156 | F18: 0.167 | G18: 0.03063 | H18: 0.125 | I18: 0.143 | J18: 0.04294
A19: 17 | B19: 0.058 | C19: 0.059 | D19: 0.127 | E19: 0.147 | F19: 0.167 | G19: 0.02905 | H19: 0.118 | I19: 0.125 | J19: 0.04038
A20: 18 | B20: 0.055 | C20: 0.056 | D20: 0.12 | E20: 0.139 | F20: 0.143 | G20: 0.02757 | H20: 0.111 | I20: 0.112 | J20: 0.03884
A21: 19 | B21: 0.052 | C21: 0.053 | D21: 0.114 | E21: 0.132 | F21: 0.143 | G21: 0.02616 | H21: 0.105 | I21: 0.112 | J21: 0.03693
A22: 20 | B22: 0.05 | C22: 0.05 | D22: 0.109 | E22: 0.125 | F22: 0.143 | G22: 0.02517 | H22: 0.1 | I22: 0.112 | J22: 0.03486
A23: 21 | B23: 0.048 | C23: 0.048 | D23: 0.104 | E23: 0.119 | F23: 0.125 | G23: 0.02408 | H23: 0.095 | I23: 0.1 | J23: 0.03335
A24: 22 | B24: 0.046 | C24: 0.046 | D24: 0.099 | E24: 0.114 | F24: 0.125 | G24: 0.02296 | H24: 0.091 | I24: 0.1 | J24: 0.03182
A25: 23 | B25: 0.044 | C25: 0.044 | D25: 0.095 | E25: 0.109 | F25: 0.112 | G25: 0.02226 | H25: 0.087 | I25: 0.091 | J25: 0.03052
A26: 24 | B26: 0.042 | C26: 0.042 | D26: 0.092 | E26: 0.104 | F26: 0.112 | G26: 0.02157 | H26: 0.083 | I26: 0.084 | J26: 0.02969
A27: 25 | B27: 0.04 | C27: 0.04 | D27: 0.088 | E27: 0.1 | F27: 0.112 | G27: 0.02058 | H27: 0.08 | I27: 0.084 | J27: 0.02841
A28: 26 | B28: 0.039 | C28: 0.039 | D28: 0.085 | E28: 0.096 | F28: 0.1 | G28: 0.01989 | H28: 0.077 | I28: 0.084 | J28: 0.02716
A29: 27 | B29: 0.037 | C29: 0.038 | D29: 0.082 | E29: 0.093 | F29: 0.1 | G29: 0.01902 | H29: 0.074 | I29: 0.077 | J29: 0.02624
A30: 28 | B30: 0.036 | C30: 0.036 | D30: 0.079 | E30: 0.089 | F30: 0.091 | G30: 0.01866 | H30: 0.071 | I30: 0.072 | J30: 0.02568
A31: 29 | B31: 0.035 | C31: 0.035 | D31: 0.076 | E31: 0.086 | F31: 0.091 | G31: 0.01803 | H31: 0.069 | I31: 0.072 | J31: 0.02463
A32: 30 | B32: 0.034 | C32: 0.034 | D32: 0.074 | E32: 0.083 | F32: 0.084 | G32: 0.01766 | H32: 0.067 | I32: 0.072 | J32: 0.02366
A33: 31 | B33: 0.033 | C33: 0.033 | D33: 0.072 | E33: 0.081 | F33: 0.084 | G33: 0.01688 | H33: 0.065 | I33: 0.067 | J33: 0.02286
A34: 32 | B34: 0.032 | C34: 0.032 | D34: 0.069 | E34: 0.078 | F34: 0.084 | G34: 0.01655 | H34: 0.063 | I34: 0.067 | J34: 0.02216
A35: 33 | B35: 0.031 | C35: 0.031 | D35: 0.067 | E35: 0.076 | F35: 0.077 | G35: 0.01585 | H35: 0.061 | I35: 0.063 | J35: 0.02161
A36: 34 | B36: 0.03 | C36: 0.03 | D36: 0.066 | E36: 0.074 | F36: 0.077 | G36: 0.01532 | H36: 0.059 | I36: 0.063 | J36: 0.02097
A37: 35 | B37: 0.029 | C37: 0.029 | D37: 0.064 | E37: 0.071 | F37: 0.072 | G37: 0.01532 | H37: 0.057 | I37: 0.059 | J37: 0.02051
A38: 36 | B38: 0.028 | C38: 0.028 | D38: 0.062 | E38: 0.069 | F38: 0.072 | G38: 0.01494 | H38: 0.056 | I38: 0.059 | J38: 0.01974
A39: 37 | B39: 0.027 | C39: 0.028 | D39: 0.06 | E39: 0.068 | F39: 0.072 | G39: 0.01425 | H39: 0.054 | I39: 0.056 | J39: 0.0195
A40: 38 | B40: 0.027 | C40: 0.027 | D40: 0.059 | E40: 0.066 | F40: 0.067 | G40: 0.01393 | H40: 0.053 | I40: 0.056 | J40: 0.01882
A41: 39 | B41: 0.026 | C41: 0.026 | D41: 0.057 | E41: 0.064 | F41: 0.067 | G41: 0.0137 | H41: 0.051 | I41: 0.053 | J41: 0.0186
A42: 40 | B42: 0.025 | C42: 0.025 | D42: 0.056 | E42: 0.063 | F42: 0.067 | G42: 0.01317 | H42: 0.05 | I42: 0.053 | J42: 0.01791
A43: 41 | B43: 0.025 | C43: 0.025 | D43: 0.055 | E43: 0.061 | F43: 0.063 | G43: 0.01306 | H43: 0.049 | I43: 0.05 | J43: 0.01741
A44: 42 | B44: 0.024 | C44: 0.024 | D44: 0.053 | E44: 0.06 | F44: 0.063 | G44: 0.01261 | H44: 0.048 | I44: 0.05 | J44: 0.01694
A45: 43 | B45: 0.024 | C45: 0.024 | D45: 0.052 | E45: 0.058 | F45: 0.059 | G45: 0.01248 | H45: 0.047 | I45: 0.048 | J45: 0.01664
A46: 44 | B46: 0.023 | C46: 0.023 | D46: 0.051 | E46: 0.057 | F46: 0.059 | G46: 0.0121 | H46: 0.045 | I46: 0.046 | J46: 0.01664
A47: 45 | B47: 0.023 | C47: 0.023 | D47: 0.05 | E47: 0.056 | F47: 0.059 | G47: 0.01175 | H47: 0.044 | I47: 0.046 | J47: 0.01634
A48: 46 | B48: 0.022 | C48: 0.022 | D48: 0.049 | E48: 0.054 | F48: 0.056 | G48: 0.01175 | H48: 0.043 | I48: 0.044 | J48: 0.01601
A49: 47 | B49: 0.022 | C49: 0.022 | D49: 0.048 | E49: 0.053 | F49: 0.056 | G49: 0.01153 | H49: 0.043 | I49: 0.044 | J49: 0.01532
A50: 48 | B50: 0.021 | C50: 0.021 | D50: 0.047 | E50: 0.052 | F50: 0.053 | G50: 0.01126 | H50: 0.042 | I50: 0.044 | J50: 0.01499
A51: 49 | B51: 0.021 | C51: 0.021 | D51: 0.046 | E51: 0.051 | F51: 0.053 | G51: 0.01102 | H51: 0.041 | I51: 0.042 | J51: 0.01475
A52: 50 | B52: 0.02 | C52: 0.02 | D52: 0.045 | E52: 0.05 | F52: 0.053 | G52: 0.01072 | H52: 0.04 | I52: 0.042 | J52: 0.0144
A53: 51 | B53: 0.02 | C53: 0.02 | D53: 0.044 | E53: 0.049 | F53: 0.05 | G53: 0.01053 | H53: 0.039 | I53: 0.04 | J53: 0.01422
A54: 52 | B54: 0.02 | C54: 0.02 | D54: 0.043 | E54: 0.048 | F54: 0.05 | G54: 0.01036 | H54: 0.038 | I54: 0.039 | J54: 0.01422
A55: 53 | B55: 0.019 | C55: 0.019 | D55: 0.043 | E55: 0.047 | F55: 0.048 | G55: 0.01028 | H55: 0.038 | I55: 0.039 | J55: 0.0137
A56: 54 | B56: 0.019 | C56: 0.019 | D56: 0.042 | E56: 0.046 | F56: 0.048 | G56: 0.01015 | H56: 0.037 | I56: 0.038 | J56: 0.0137
A57: 55 | B57: 0.019 | C57: 0.019 | D57: 0.041 | E57: 0.045 | F57: 0.046 | G57: 0.01007 | H57: 0.036 | I57: 0.038 | J57: 0.01337
A58: 56 | B58: 0.018 | C58: 0.018 | D58: 0.04 | E58: 0.045 | F58: 0.046 | G58: 0.00961 | H58: 0.036 | I58: 0.038 | J58: 0.01288
A59: 57 | B59: 0.018 | C59: 0.018 | D59: 0.04 | E59: 0.044 | F59: 0.046 | G59: 0.00952 | H59: 0.035 | I59: 0.036 | J59: 0.01281
A60: 58 | B60: 0.018 | C60: 0.018 | D60: 0.039 | E60: 0.043 | F60: 0.044 | G60: 0.00945 | H60: 0.034 | I60: 0.035 | J60: 0.01281
A61: 59 | B61: 0.017 | C61: 0.017 | D61: 0.038 | E61: 0.042 | F61: 0.044 | G61: 0.00934 | H61: 0.034 | I61: 0.035 | J61: 0.0124
A62: 60 | B62: 0.017 | C62: 0.017 | D62: 0.038 | E62: 0.042 | F62: 0.044 | G62: 0.00895 | H62: 0.033 | I62: 0.034 | J62: 0.0124
A63: 61 | B63: 0.017 | C63: 0.017 | D63: 0.037 | E63: 0.041 | F63: 0.042 | G63: 0.00892 | H63: 0.033 | I63: 0.034 | J63: 0.01201
A64: 62 | B64: 0.017 | C64: 0.017 | D64: 0.036 | E64: 0.04 | F64: 0.042 | G64: 0.00882 | H64: 0.032 | I64: 0.033 | J64: 0.01201
A65: 63 | B65: 0.016 | C65: 0.016 | D65: 0.036 | E65: 0.04 | F65: 0.042 | G65: 0.00847 | H65: 0.032 | I65: 0.033 | J65: 0.01165
A66: 64 | B66: 0.016 | C66: 0.016 | D66: 0.035 | E66: 0.039 | F66: 0.04 | G66: 0.00847 | H66: 0.031 | I66: 0.032 | J66: 0.01165
A67: 65 | B67: 0.016 | C67: 0.016 | D67: 0.035 | E67: 0.038 | F67: 0.039 | G67: 0.00847 | H67: 0.031 | I67: 0.032 | J67: 0.0113
A68: 66 | B68: 0.016 | C68: 0.016 | D68: 0.034 | E68: 0.038 | F68: 0.039 | G68: 0.00828 | H68: 0.03 | I68: 0.031 | J68: 0.0113
A69: 67 | B69: 0.015 | C69: 0.015 | D69: 0.034 | E69: 0.037 | F69: 0.038 | G69: 0.00828 | H69: 0.03 | I69: 0.031 | J69: 0.01097
A70: 68 | B70: 0.015 | C70: 0.015 | D70: 0.033 | E70: 0.037 | F70: 0.038 | G70: 0.0081 | H70: 0.029 | I70: 0.03 | J70: 0.01097
A71: 69 | B71: 0.015 | C71: 0.015 | D71: 0.033 | E71: 0.036 | F71: 0.038 | G71: 0.008 | H71: 0.029 | I71: 0.03 | J71: 0.01065
A72: 70 | B72: 0.015 | C72: 0.015 | D72: 0.032 | E72: 0.036 | F72: 0.038 | G72: 0.00771 | H72: 0.029 | I72: 0.03 | J72: 0.01034
A73: 71 | B73: 0.014 | C73: 0.015 | D73: 0.032 | E73: 0.035 | F73: 0.036 | G73: 0.00771 | H73: 0.028 | I73: 0.029 | J73: 0.01034
A74: 72 | B74: 0.014 | C74: 0.014 | D74: 0.032 | E74: 0.035 | F74: 0.036 | G74: 0.00751 | H74: 0.028 | I74: 0.029 | J74: 0.01006
A75: 73 | B75: 0.014 | C75: 0.014 | D75: 0.031 | E75: 0.034 | F75: 0.035 | G75: 0.00751 | H75: 0.027 | I75: 0.027 | J75: 0.01063
A76: 74 | B76: 0.014 | C76: 0.014 | D76: 0.031 | E76: 0.034 | F76: 0.035 | G76: 0.00738 | H76: 0.027 | I76: 0.027 | J76: 0.01035
A77: 75 | B77: 0.014 | C77: 0.014 | D77: 0.03 | E77: 0.033 | F77: 0.034 | G77: 0.00738 | H77: 0.027 | I77: 0.027 | J77: 0.01007
A78: 76 | B78: 0.014 | C78: 0.014 | D78: 0.03 | E78: 0.033 | F78: 0.034 | G78: 0.00726 | H78: 0.026 | I78: 0.027 | J78: 0.0098
A79: 77 | B79: 0.013 | C79: 0.013 | D79: 0.03 | E79: 0.032 | F79: 0.033 | G79: 0.00726 | H79: 0.026 | I79: 0.027 | J79: 0.00954
A80: 78 | B80: 0.013 | C80: 0.013 | D80: 0.029 | E80: 0.032 | F80: 0.033 | G80: 0.00716 | H80: 0.026 | I80: 0.027 | J80: 0.00929
A81: 79 | B81: 0.013 | C81: 0.013 | D81: 0.029 | E81: 0.032 | F81: 0.033 | G81: 0.00693 | H81: 0.025 | I81: 0.026 | J81: 0.00929
A82: 80 | B82: 0.013 | C82: 0.013 | D82: 0.028 | E82: 0.031 | F82: 0.032 | G82: 0.00693 | H82: 0.025 | I82: 0.026 | J82: 0.00907
A83: 81 | B83: 0.013 | C83: 0.013 | D83: 0.028 | E83: 0.031 | F83: 0.032 | G83: 0.00683 | H83: 0.025 | I83: 0.026 | J83: 0.00884
A84: 82 | B84: 0.013 | C84: 0.013 | D84: 0.028 | E84: 0.03 | F84: 0.031 | G84: 0.00683 | H84: 0.024 | I84: 0.024 | J84: 0.00929
A85: 83 | B85: 0.012 | C85: 0.013 | D85: 0.027 | E85: 0.03 | F85: 0.031 | G85: 0.00673 | H85: 0.024 | I85: 0.024 | J85: 0.00907
A86: 84 | B86: 0.012 | C86: 0.012 | D86: 0.027 | E86: 0.03 | F86: 0.031 | G86: 0.00653 | H86: 0.024 | I86: 0.024 | J86: 0.00885
A87: 85 | B87: 0.012 | C87: 0.012 | D87: 0.026 | E87: 0.029 | F87: 0.03 | G87: 0.00653 | H87: 0.024 | I87: 0.024 | J87: 0.00864
A88: 86 | B88: 0.012 | C88: 0.012 | D88: 0.026 | E88: 0.029 | F88: 0.03 | G88: 0.00645 | H88: 0.023 | I88: 0.023 | J88: 0.00885
A89: 87 | B89: 0.012 | C89: 0.012 | D89: 0.026 | E89: 0.029 | F89: 0.03 | G89: 0.00627 | H89: 0.023 | I89: 0.023 | J89: 0.00864
A90: 88 | B90: 0.012 | C90: 0.012 | D90: 0.026 | E90: 0.028 | F90: 0.029 | G90: 0.00627 | H90: 0.023 | I90: 0.023 | J90: 0.00844
A91: 89 | B91: 0.012 | C91: 0.012 | D91: 0.026 | E91: 0.028 | F91: 0.029 | G91: 0.0062 | H91: 0.022 | I91: 0.022 | J91: 0.00863
A92: 90 | B92: 0.012 | C92: 0.012 | D92: 0.025 | E92: 0.028 | F92: 0.029 | G92: 0.00603 | H92: 0.022 | I92: 0.022 | J92: 0.00844
A93: 91 | B93: 0.011 | C93: 0.011 | D93: 0.025 | E93: 0.027 | F93: 0.027 | G93: 0.00649 | H93: 0.022 | I93: 0.022 | J93: 0.00825
A94: 92 | B94: 0.011 | C94: 0.011 | D94: 0.025 | E94: 0.027 | F94: 0.027 | G94: 0.00632 | H94: 0.022 | I94: 0.022 | J94: 0.00807
A95: 93 | B95: 0.011 | C95: 0.011 | D95: 0.025 | E95: 0.027 | F95: 0.027 | G95: 0.00615 | H95: 0.022 | I95: 0.022 | J95: 0.0079
A96: 94 | B96: 0.011 | C96: 0.011 | D96: 0.024 | E96: 0.027 | F96: 0.027 | G96: 0.00598 | H96: 0.021 | I96: 0.021 | J96: 0.00807
A97: 95 | B97: 0.011 | C97: 0.011 | D97: 0.024 | E97: 0.026 | F97: 0.027 | G97: 0.00594 | H97: 0.021 | I97: 0.021 | J97: 0.0079
A98: 96 | B98: 0.011 | C98: 0.011 | D98: 0.024 | E98: 0.026 | F98: 0.027 | G98: 0.00578 | H98: 0.021 | I98: 0.021 | J98: 0.00773
A99: 97 | B99: 0.011 | C99: 0.011 | D99: 0.023 | E99: 0.026 | F99: 0.027 | G99: 0.00563 | H99: 0.021 | I99: 0.021 | J99: 0.00757
A100: 98 | B100: 0.011 | C100: 0.011 | D100: 0.023 | E100: 0.026 | F100: 0.027 | G100: 0.00549 | H100: 0.02 | I100: 0.02 | J100: 0.00773
A101: 99 | B101: 0.011 | C101: 0.011 | D101: 0.023 | E101: 0.025 | F101: 0.026 | G101: 0.00549 | H101: 0.02 | I101: 0.02 | J101: 0.00757
A102: 100 | B102: 0.01 | C102: 0.01 | D102: 0.023 | E102: 0.025 | F102: 0.026 | G102: 0.00546 | H102: 0.02 | I102: 0.02 | J102: 0.00742
